{"text_format":"3","workbook":"xlsx","n_sheets":4,"sheets":["Ұпай бақылағыш","Өнімділігіңіз","Параметрлер","Есептеулер"],"not_rendered":{"defined_names":3,"comments":1},"read":"whole","date_system":"1900"}

{"sheet":"Ұпай бақылағыш","index":0,"n_rows":14,"n_cols":6,"rows_kept":14}
[null,"Мұнда ұпайларыңызды енгізіңіз"]
[]
[null,null,"Класс","Түр","Сипаттама","Ұпай"]
[null,null,"Заманауи француз тілі","Үй жұмысы","II ДЖС тарихы",{"v":0.8,"d":"80%"}]
[null,null,"Java ішіндегі қосымша бағдарламалау","Аралық сынақ",null,{"v":0.75,"d":"75%"}]
[null,null,"Испан тілі","Үй жұмысы",null,{"v":0.5,"d":"50%"}]
[null,null,"Теоретикалық физика","Үй жұмысы",null,{"v":0.95,"d":"95%"}]
[null,null,"Заманауи француз тілі","Үй жұмысы","I ДЖС тарихы",{"v":0.9,"d":"90%"}]
[null,null,"Заманауи француз тілі","Үй жұмысы","30 - 41 беттер",{"v":0.8,"d":"80%"}]
[null,null,"Құрылым","Эссе","Сенім қағазы",{"v":0.95,"d":"95%"}]
[null,null,"1-математика","Үй жұмысы","21 & 26 беттер",{"v":0.8,"d":"80%"}]
[null,null,"2-математика","Үй жұмысы","15 & 18 беттер",{"v":0.85,"d":"85%"}]
[null,null,"1-математика","Үй жұмысы","34 - 36 беттер",{"v":0.8,"d":"80%"}]
[null,null,"2-математика","Бақылау",null,{"v":0.95,"d":"95%"}]

{"sheet":"Өнімділігіңіз","index":1,"n_rows":31,"n_cols":8,"rows_kept":31}
[null,"Өнімділігіңіз"]
[]
[null,null,"Қорытындылар"]
[null,null,{"$f":"\"Сағат: \"&SUM(tblClasses[Кредит сағаттары])","v":"Сағат: 24"},{"$f":"AVERAGE(D7:D31)","v":{"v":0.8104761904761906,"d":"81%"}},{"$f":"AVERAGE(E7:E31)","v":{"v":2.7142857142857144,"d":"2.71"}},{"$f":"SUM(F7:F31)","v":{"v":2.625,"d":"2.63"}},{"$f":"IFERROR(HLOOKUP(D4,lstGPAMapping,2),\"\")","v":"B-"}]
[]
[null,null,"Кластар","%","GPA","wGPA","Әріп","Жалпы өнімділік"]
[null,null,{"$f":"Есептеулер!C6","v":"Заманауи француз тілі"},{"$f":"Есептеулер!AL6","v":{"v":0.8333333333333334,"d":"83%"}},{"$f":"Есептеулер!AM6","v":{"v":3,"d":"3.00"}},{"$f":"IFERROR(E7*Параметрлер!D9/SUM(tblClasses[Кредит сағаттары]),\"\")","v":{"v":0.375,"d":"0.38"}},{"$f":"Есептеулер!AN6","v":"B"}]
[null,null,{"$f":"Есептеулер!C7","v":"Теоретикалық физика"},{"$f":"Есептеулер!AL7","v":{"v":0.95,"d":"95%"}},{"$f":"Есептеулер!AM7","v":{"v":4,"d":"4.00"}},{"$f":"IFERROR(E8*Параметрлер!D10/SUM(tblClasses[Кредит сағаттары]),\"\")","v":{"v":0.5,"d":"0.50"}},{"$f":"Есептеулер!AN7","v":"A"}]
[null,null,{"$f":"Есептеулер!C8","v":"1-математика"},{"$f":"Есептеулер!AL8","v":{"v":0.8000000000000002,"d":"80%"}},{"$f":"Есептеулер!AM8","v":2.67},{"$f":"IFERROR(E9*Параметрлер!D11/SUM(tblClasses[Кредит сағаттары]),\"\")","v":{"v":0.445,"d":"0.45"}},{"$f":"Есептеулер!AN8","v":"B-"}]
[null,null,{"$f":"Есептеулер!C9","v":"2-математика"},{"$f":"Есептеулер!AL9","v":{"v":0.89,"d":"89%"}},{"$f":"Есептеулер!AM9","v":3.33},{"$f":"IFERROR(E10*Параметрлер!D12/SUM(tblClasses[Кредит сағаттары]),\"\")","v":{"v":0.555,"d":"0.56"}},{"$f":"Есептеулер!AN9","v":"B+"}]
[null,null,{"$f":"Есептеулер!C10","v":"Java ішіндегі қосымша бағдарламалау"},{"$f":"Есептеулер!AL10","v":{"v":0.7500000000000001,"d":"75%"}},{"$f":"Есептеулер!AM10","v":{"v":2,"d":"2.00"}},{"$f":"IFERROR(E11*Параметрлер!D13/SUM(tblClasses[Кредит сағаттары]),\"\")","v":{"v":0.4166666666666667,"d":"0.42"}},{"$f":"Есептеулер!AN10","v":"C"}]
[null,null,{"$f":"Есептеулер!C11","v":"Испан тілі"},{"$f":"Есептеулер!AL11","v":{"v":0.5,"d":"50%"}},{"$f":"Есептеулер!AM11","v":{"v":0,"d":"0.00"}},{"$f":"IFERROR(E12*Параметрлер!D14/SUM(tblClasses[Кредит сағаттары]),\"\")","v":{"v":0,"d":"0.00"}},{"$f":"Есептеулер!AN11","v":"F"}]
[null,null,{"$f":"Есептеулер!C12","v":"Құрылым"},{"$f":"Есептеулер!AL12","v":{"v":0.95,"d":"95%"}},{"$f":"Есептеулер!AM12","v":{"v":4,"d":"4.00"}},{"$f":"IFERROR(E13*Параметрлер!D15/SUM(tblClasses[Кредит сағаттары]),\"\")","v":{"v":0.3333333333333333,"d":"0.33"}},{"$f":"Есептеулер!AN12","v":"A"}]
[null,null,{"$f":"Есептеулер!C13","v":""},{"$f":"Есептеулер!AL13","v":""},{"$f":"Есептеулер!AM13","v":""},{"$f":"IFERROR(E14*Параметрлер!D16/SUM(tblClasses[Кредит сағаттары]),\"\")","v":""},{"$f":"Есептеулер!AN13","v":""}]
[null,null,{"$f":"Есептеулер!C14","v":""},{"$f":"Есептеулер!AL14","v":""},{"$f":"Есептеулер!AM14","v":""},{"$f":"IFERROR(E15*Параметрлер!D17/SUM(tblClasses[Кредит сағаттары]),\"\")","v":""},{"$f":"Есептеулер!AN14","v":""}]
[null,null,{"$f":"Есептеулер!C15","v":""},{"$f":"Есептеулер!AL15","v":""},{"$f":"Есептеулер!AM15","v":""},{"$f":"IFERROR(E16*Параметрлер!D18/SUM(tblClasses[Кредит сағаттары]),\"\")","v":""},{"$f":"Есептеулер!AN15","v":""}]
[null,null,{"$f":"Есептеулер!C16","v":""},{"$f":"Есептеулер!AL16","v":""},{"$f":"Есептеулер!AM16","v":""},{"$f":"IFERROR(E17*Параметрлер!D19/SUM(tblClasses[Кредит сағаттары]),\"\")","v":""},{"$f":"Есептеулер!AN16","v":""}]
[null,null,{"$f":"Есептеулер!C17","v":""},{"$f":"Есептеулер!AL17","v":""},{"$f":"Есептеулер!AM17","v":""},{"$f":"IFERROR(E18*Параметрлер!D20/SUM(tblClasses[Кредит сағаттары]),\"\")","v":""},{"$f":"Есептеулер!AN17","v":""}]
[null,null,{"$f":"Есептеулер!C18","v":""},{"$f":"Есептеулер!AL18","v":""},{"$f":"Есептеулер!AM18","v":""},{"$f":"IFERROR(E19*Параметрлер!D21/SUM(tblClasses[Кредит сағаттары]),\"\")","v":""},{"$f":"Есептеулер!AN18","v":""}]
[null,null,{"$f":"Есептеулер!C19","v":""},{"$f":"Есептеулер!AL19","v":""},{"$f":"Есептеулер!AM19","v":""},{"$f":"IFERROR(E20*Параметрлер!D22/SUM(tblClasses[Кредит сағаттары]),\"\")","v":""},{"$f":"Есептеулер!AN19","v":""}]
[null,null,{"$f":"Есептеулер!C20","v":""},{"$f":"Есептеулер!AL20","v":""},{"$f":"Есептеулер!AM20","v":""},{"$f":"IFERROR(E21*Параметрлер!D23/SUM(tblClasses[Кредит сағаттары]),\"\")","v":""},{"$f":"Есептеулер!AN20","v":""}]
[null,null,{"$f":"Есептеулер!C21","v":""},{"$f":"Есептеулер!AL21","v":""},{"$f":"Есептеулер!AM21","v":""},{"$f":"IFERROR(E22*Параметрлер!D24/SUM(tblClasses[Кредит сағаттары]),\"\")","v":""},{"$f":"Есептеулер!AN21","v":""}]
[null,null,{"$f":"Есептеулер!C22","v":""},{"$f":"Есептеулер!AL22","v":""},{"$f":"Есептеулер!AM22","v":""},{"$f":"IFERROR(E23*Параметрлер!D25/SUM(tblClasses[Кредит сағаттары]),\"\")","v":""},{"$f":"Есептеулер!AN22","v":""}]
[null,null,{"$f":"Есептеулер!C23","v":""},{"$f":"Есептеулер!AL23","v":""},{"$f":"Есептеулер!AM23","v":""},{"$f":"IFERROR(E24*Параметрлер!D26/SUM(tblClasses[Кредит сағаттары]),\"\")","v":""},{"$f":"Есептеулер!AN23","v":""}]
[null,null,{"$f":"Есептеулер!C24","v":""},{"$f":"Есептеулер!AL24","v":""},{"$f":"Есептеулер!AM24","v":""},{"$f":"IFERROR(E25*Параметрлер!D27/SUM(tblClasses[Кредит сағаттары]),\"\")","v":""},{"$f":"Есептеулер!AN24","v":""}]
[null,null,{"$f":"Есептеулер!C25","v":""},{"$f":"Есептеулер!AL25","v":""},{"$f":"Есептеулер!AM25","v":""},{"$f":"IFERROR(E26*Параметрлер!D28/SUM(tblClasses[Кредит сағаттары]),\"\")","v":""},{"$f":"Есептеулер!AN25","v":""}]
[null,null,{"$f":"Есептеулер!C26","v":""},{"$f":"Есептеулер!AL26","v":""},{"$f":"Есептеулер!AM26","v":""},{"$f":"IFERROR(E27*Параметрлер!D29/SUM(tblClasses[Кредит сағаттары]),\"\")","v":""},{"$f":"Есептеулер!AN26","v":""}]
[null,null,{"$f":"Есептеулер!C27","v":""},{"$f":"Есептеулер!AL27","v":""},{"$f":"Есептеулер!AM27","v":""},{"$f":"IFERROR(E28*Параметрлер!D30/SUM(tblClasses[Кредит сағаттары]),\"\")","v":""},{"$f":"Есептеулер!AN27","v":""}]
[null,null,{"$f":"Есептеулер!C28","v":""},{"$f":"Есептеулер!AL28","v":""},{"$f":"Есептеулер!AM28","v":""},{"$f":"IFERROR(E29*Параметрлер!D31/SUM(tblClasses[Кредит сағаттары]),\"\")","v":""},{"$f":"Есептеулер!AN28","v":""}]
[null,null,{"$f":"Есептеулер!C29","v":""},{"$f":"Есептеулер!AL29","v":""},{"$f":"Есептеулер!AM29","v":""},{"$f":"IFERROR(E30*Параметрлер!D32/SUM(tblClasses[Кредит сағаттары]),\"\")","v":""},{"$f":"Есептеулер!AN29","v":""}]
[null,null,{"$f":"Есептеулер!C30","v":""},{"$f":"Есептеулер!AL30","v":""},{"$f":"Есептеулер!AM30","v":""},{"$f":"IFERROR(E31*Параметрлер!D33/SUM(tblClasses[Кредит сағаттары]),\"\")","v":""},{"$f":"Есептеулер!AN30","v":""}]

{"sheet":"Параметрлер","index":2,"n_rows":15,"n_cols":16,"rows_kept":15,"merged":[[5,2,5,15]]}
[null,"Параметрлер"]
[null,null,"Ұпайлар мен GPA салыстыру"]
[null,null,"Пайыздық мөлшерлеме",{"v":0,"d":"0%"},{"v":0.6,"d":"60%"},{"v":0.63,"d":"63%"},{"v":0.67,"d":"67%"},{"v":0.7,"d":"70%"},{"v":0.73,"d":"73%"},{"v":0.77,"d":"77%"},{"v":0.8,"d":"80%"},{"v":0.83,"d":"83%"},{"v":0.87,"d":"87%"},{"v":0.9,"d":"90%"},{"v":0.93,"d":"93%"},{"v":0.97,"d":"97%"}]
[null,null,"Әріптік баға","F","D-","D","D+","C-","C","C+","B-","B","B+","A-","A","A+"]
[null,null,"GPA",0,0.67,1,1.33,1.67,2,2.33,2.67,3,3.33,3.67,4,4]
[]
[null,null,"25 кластан жоғарыға өлшенген ұпайлар"]
[null,null,"Сіз қатысатын кластар","Кредит сағаттары","Үй жұмысы","Эссе","Бақылау","Жоба","Аралық сынақ","Соңғы емтихан","Басқа","% жалпы"]
[null,null,"Заманауи француз тілі",{"v":3,"d":"3.0"},{"v":0.1,"d":"10%"},{"v":0.15,"d":"15%"},{"v":0.15,"d":"15%"},{"v":0.1,"d":"10%"},{"v":0.2,"d":"20%"},{"v":0.3,"d":"30%"},null,{"$f":"SUM(tblClasses[[#This Row],[Үй жұмысы]:[Басқа]])","v":{"v":1,"d":"100%"}}]
[null,null,"Теоретикалық физика",{"v":3,"d":"3.0"},{"v":0.15,"d":"15%"},{"v":0.15,"d":"15%"},{"v":0.1,"d":"10%"},{"v":0.1,"d":"10%"},{"v":0.15,"d":"15%"},{"v":0.3,"d":"30%"},{"v":0.05,"d":"5%"},{"$f":"SUM(tblClasses[[#This Row],[Үй жұмысы]:[Басқа]])","v":{"v":1,"d":"100%"}}]
[null,null,"1-математика",{"v":4,"d":"4.0"},{"v":0.1,"d":"10%"},{"v":0.15,"d":"15%"},{"v":0.15,"d":"15%"},{"v":0.1,"d":"10%"},{"v":0.2,"d":"20%"},{"v":0.3,"d":"30%"},null,{"$f":"SUM(tblClasses[[#This Row],[Үй жұмысы]:[Басқа]])","v":{"v":1,"d":"100%"}}]
[null,null,"2-математика",{"v":4,"d":"4.0"},{"v":0.15,"d":"15%"},{"v":0.15,"d":"15%"},{"v":0.1,"d":"10%"},{"v":0.1,"d":"10%"},{"v":0.15,"d":"15%"},{"v":0.3,"d":"30%"},{"v":0.05,"d":"5%"},{"$f":"SUM(tblClasses[[#This Row],[Үй жұмысы]:[Басқа]])","v":{"v":1,"d":"100%"}}]
[null,null,"Java ішіндегі қосымша бағдарламалау",{"v":5,"d":"5.0"},{"v":0.15,"d":"15%"},{"v":0.15,"d":"15%"},{"v":0.1,"d":"10%"},{"v":0.1,"d":"10%"},{"v":0.2,"d":"20%"},{"v":0.3,"d":"30%"},null,{"$f":"SUM(tblClasses[[#This Row],[Үй жұмысы]:[Басқа]])","v":{"v":1,"d":"100%"}}]
[null,null,"Испан тілі",{"v":3,"d":"3.0"},{"v":0.1,"d":"10%"},{"v":0.15,"d":"15%"},{"v":0.17,"d":"17%"},{"v":0.13,"d":"13%"},{"v":0.2,"d":"20%"},{"v":0.2,"d":"20%"},{"v":0.05,"d":"5%"},{"$f":"SUM(tblClasses[[#This Row],[Үй жұмысы]:[Басқа]])","v":{"v":1,"d":"100%"}}]
[null,null,"Құрылым",{"v":2,"d":"2.0"},{"v":0.15,"d":"15%"},{"v":0.15,"d":"15%"},{"v":0.12,"d":"12%"},{"v":0.15,"d":"15%"},{"v":0.15,"d":"15%"},{"v":0.25,"d":"25%"},{"v":0.03,"d":"3%"},{"$f":"SUM(tblClasses[[#This Row],[Үй жұмысы]:[Басқа]])","v":{"v":1,"d":"100%"}}]

{"sheet":"Есептеулер","index":3,"n_rows":657,"n_cols":40,"rows_kept":657,"hidden":true}
[null,"Есептеулер"]
[null,null,"Бұл жұмыс парағы баға & GPA ұпайына арналған есептеулерді береді және жасырын қалу керек. Бұл параққа жасалған кез келген өзгеріс қателерді келтіріп шығаруы мүмкін."]
[]
[null,null,"Ағымдағы класс тізімі","Ұпа,йлар (1 тыс)",{"$nulls":24},"Баға есептеу"]
[null,null,"Класс",1,2,3,4,5,6,7,8,9,10,11,12,13,14,15,16,17,18,19,20,21,22,23,24,25,{"$f":"tblClasses[[#Headers],[Үй жұмысы]]","v":"Үй жұмысы"},{"$f":"tblClasses[[#Headers],[Эссе]]","v":"Эссе"},{"$f":"tblClasses[[#Headers],[Бақылау]]","v":"Бақылау"},{"$f":"tblClasses[[#Headers],[Жоба]]","v":"Жоба"},{"$f":"tblClasses[[#Headers],[Аралық сынақ]]","v":"Аралық сынақ"},{"$f":"tblClasses[[#Headers],[Соңғы емтихан]]","v":"Соңғы емтихан"},{"$f":"tblClasses[[#Headers],[Басқа]]","v":"Басқа"},"Жалпы","Жалпы мүмкін нүктелер","Жалпы %","Баға нүктесі","Әріптік баға"]
[null,null,{"$f":"IF(Параметрлер!C9=\"\",\"\",Параметрлер!C9)","v":"Заманауи француз тілі"},{"$f":"IFERROR(INDEX(tblClassScores[],MATCH($C6:$C30&D$5:AB$5,Есептеулер!$C$33:$C$657,0),4),\"\")","v":{"v":0.8,"d":"80%"}},{"v":0.9,"d":"90%"},{"v":0.8,"d":"80%"},"","","","","","","","","","","","","","","","","","","","","","",{"$f":"IFERROR(AVERAGEIFS(tblClassScores[Ұпай],tblClassScores[Класс],Есептеулер!$C6,tblClassScores[Түр],Есептеулер!AC$5)*Параметрлер!E9,\"\")","v":0.08333333333333334},{"$f":"IFERROR(AVERAGEIFS(tblClassScores[Ұпай],tblClassScores[Класс],Есептеулер!$C6,tblClassScores[Түр],Есептеулер!AD$5)*Параметрлер!F9,\"\")","v":""},{"$f":"IFERROR(AVERAGEIFS(tblClassScores[Ұпай],tblClassScores[Класс],Есептеулер!$C6,tblClassScores[Түр],Есептеулер!AE$5)*Параметрлер!G9,\"\")","v":""},{"$f":"IFERROR(AVERAGEIFS(tblClassScores[Ұпай],tblClassScores[Класс],Есептеулер!$C6,tblClassScores[Түр],Есептеулер!AF$5)*Параметрлер!H9,\"\")","v":""},{"$f":"IFERROR(AVERAGEIFS(tblClassScores[Ұпай],tblClassScores[Класс],Есептеулер!$C6,tblClassScores[Түр],Есептеулер!AG$5)*Параметрлер!I9,\"\")","v":""},{"$f":"IFERROR(AVERAGEIFS(tblClassScores[Ұпай],tblClassScores[Класс],Есептеулер!$C6,tblClassScores[Түр],Есептеулер!AH$5)*Параметрлер!J9,\"\")","v":""},{"$f":"IFERROR(AVERAGEIFS(tblClassScores[Ұпай],tblClassScores[Класс],Есептеулер!$C6,tblClassScores[Түр],Есептеулер!AI$5)*Параметрлер!K9,\"\")","v":""},{"$f":"SUM(AC6:AI6)","v":0.08333333333333334},{"$f":"SUMIFS(Параметрлер!E9:K9,Есептеулер!AC6:AI6,\">0\")","v":0.1},{"$f":"IFERROR(AJ6/AK6,\"\")","v":{"v":0.8333333333333334,"d":"83%"}},{"$f":"IFERROR(HLOOKUP(AL6,lstGPAMapping,3),\"\")","v":3},{"$f":"IFERROR(HLOOKUP(AL6,lstGPAMapping,2),\"\")","v":"B"}]
[null,null,{"$f":"IF(Параметрлер!C10=\"\",\"\",Параметрлер!C10)","v":"Теоретикалық физика"},{"v":0.95,"d":"95%"},"","","","","","","","","","","","","","","","","","","","","","","","",{"$f":"IFERROR(AVERAGEIFS(tblClassScores[Ұпай],tblClassScores[Класс],Есептеулер!$C7,tblClassScores[Түр],Есептеулер!AC$5)*Параметрлер!E10,\"\")","v":0.1425},{"$f":"IFERROR(AVERAGEIFS(tblClassScores[Ұпай],tblClassScores[Класс],Есептеулер!$C7,tblClassScores[Түр],Есептеулер!AD$5)*Параметрлер!F10,\"\")","v":""},{"$f":"IFERROR(AVERAGEIFS(tblClassScores[Ұпай],tblClassScores[Класс],Есептеулер!$C7,tblClassScores[Түр],Есептеулер!AE$5)*Параметрлер!G10,\"\")","v":""},{"$f":"IFERROR(AVERAGEIFS(tblClassScores[Ұпай],tblClassScores[Класс],Есептеулер!$C7,tblClassScores[Түр],Есептеулер!AF$5)*Параметрлер!H10,\"\")","v":""},{"$f":"IFERROR(AVERAGEIFS(tblClassScores[Ұпай],tblClassScores[Класс],Есептеулер!$C7,tblClassScores[Түр],Есептеулер!AG$5)*Параметрлер!I10,\"\")","v":""},{"$f":"IFERROR(AVERAGEIFS(tblClassScores[Ұпай],tblClassScores[Класс],Есептеулер!$C7,tblClassScores[Түр],Есептеулер!AH$5)*Параметрлер!J10,\"\")","v":""},{"$f":"IFERROR(AVERAGEIFS(tblClassScores[Ұпай],tblClassScores[Класс],Есептеулер!$C7,tblClassScores[Түр],Есептеулер!AI$5)*Параметрлер!K10,\"\")","v":""},{"$f":"SUM(AC7:AI7)","v":0.1425},{"$f":"SUMIFS(Параметрлер!E10:K10,Есептеулер!AC7:AI7,\">0\")","v":0.15},{"$f":"IFERROR(AJ7/AK7,\"\")","v":{"v":0.95,"d":"95%"}},4,"A"]
[null,null,{"$f":"IF(Параметрлер!C11=\"\",\"\",Параметрлер!C11)","v":"1-математика"},{"v":0.8,"d":"80%"},{"v":0.8,"d":"80%"},"","","","","","","","","","","","","","","","","","","","","","","",{"$f":"IFERROR(AVERAGEIFS(tblClassScores[Ұпай],tblClassScores[Класс],Есептеулер!$C8,tblClassScores[Түр],Есептеулер!AC$5)*Параметрлер!E11,\"\")","v":0.08000000000000002},{"$f":"IFERROR(AVERAGEIFS(tblClassScores[Ұпай],tblClassScores[Класс],Есептеулер!$C8,tblClassScores[Түр],Есептеулер!AD$5)*Параметрлер!F11,\"\")","v":""},{"$f":"IFERROR(AVERAGEIFS(tblClassScores[Ұпай],tblClassScores[Класс],Есептеулер!$C8,tblClassScores[Түр],Есептеулер!AE$5)*Параметрлер!G11,\"\")","v":""},{"$f":"IFERROR(AVERAGEIFS(tblClassScores[Ұпай],tblClassScores[Класс],Есептеулер!$C8,tblClassScores[Түр],Есептеулер!AF$5)*Параметрлер!H11,\"\")","v":""},{"$f":"IFERROR(AVERAGEIFS(tblClassScores[Ұпай],tblClassScores[Класс],Есептеулер!$C8,tblClassScores[Түр],Есептеулер!AG$5)*Параметрлер!I11,\"\")","v":""},{"$f":"IFERROR(AVERAGEIFS(tblClassScores[Ұпай],tblClassScores[Класс],Есептеулер!$C8,tblClassScores[Түр],Есептеулер!AH$5)*Параметрлер!J11,\"\")","v":""},{"$f":"IFERROR(AVERAGEIFS(tblClassScores[Ұпай],tblClassScores[Класс],Есептеулер!$C8,tblClassScores[Түр],Есептеулер!AI$5)*Параметрлер!K11,\"\")","v":""},0.08000000000000002,{"$f":"SUMIFS(Параметрлер!E11:K11,Есептеулер!AC8:AI8,\">0\")","v":0.1},{"v":0.8000000000000002,"d":"80%"},2.67,"B-"]
[null,null,{"$f":"IF(Параметрлер!C12=\"\",\"\",Параметрлер!C12)","v":"2-математика"},{"v":0.85,"d":"85%"},{"v":0.95,"d":"95%"},"","","","","","","","","","","","","","","","","","","","","","","",{"$f":"IFERROR(AVERAGEIFS(tblClassScores[Ұпай],tblClassScores[Класс],Есептеулер!$C9,tblClassScores[Түр],Есептеулер!AC$5)*Параметрлер!E12,\"\")","v":0.1275},{"$f":"IFERROR(AVERAGEIFS(tblClassScores[Ұпай],tblClassScores[Класс],Есептеулер!$C9,tblClassScores[Түр],Есептеулер!AD$5)*Параметрлер!F12,\"\")","v":""},{"$f":"IFERROR(AVERAGEIFS(tblClassScores[Ұпай],tblClassScores[Класс],Есептеулер!$C9,tblClassScores[Түр],Есептеулер!AE$5)*Параметрлер!G12,\"\")","v":0.095},{"$f":"IFERROR(AVERAGEIFS(tblClassScores[Ұпай],tblClassScores[Класс],Есептеулер!$C9,tblClassScores[Түр],Есептеулер!AF$5)*Параметрлер!H12,\"\")","v":""},{"$f":"IFERROR(AVERAGEIFS(tblClassScores[Ұпай],tblClassScores[Класс],Есептеулер!$C9,tblClassScores[Түр],Есептеулер!AG$5)*Параметрлер!I12,\"\")","v":""},{"$f":"IFERROR(AVERAGEIFS(tblClassScores[Ұпай],tblClassScores[Класс],Есептеулер!$C9,tblClassScores[Түр],Есептеулер!AH$5)*Параметрлер!J12,\"\")","v":""},{"$f":"IFERROR(AVERAGEIFS(tblClassScores[Ұпай],tblClassScores[Класс],Есептеулер!$C9,tblClassScores[Түр],Есептеулер!AI$5)*Параметрлер!K12,\"\")","v":""},0.2225,{"$f":"SUMIFS(Параметрлер!E12:K12,Есептеулер!AC9:AI9,\">0\")","v":0.25},{"v":0.89,"d":"89%"},3.33,"B+"]
[null,null,{"$f":"IF(Параметрлер!C13=\"\",\"\",Параметрлер!C13)","v":"Java ішіндегі қосымша бағдарламалау"},{"v":0.75,"d":"75%"},"","","","","","","","","","","","","","","","","","","","","","","","",{"$f":"IFERROR(AVERAGEIFS(tblClassScores[Ұпай],tblClassScores[Класс],Есептеулер!$C10,tblClassScores[Түр],Есептеулер!AC$5)*Параметрлер!E13,\"\")","v":""},{"$f":"IFERROR(AVERAGEIFS(tblClassScores[Ұпай],tblClassScores[Класс],Есептеулер!$C10,tblClassScores[Түр],Есептеулер!AD$5)*Параметрлер!F13,\"\")","v":""},{"$f":"IFERROR(AVERAGEIFS(tblClassScores[Ұпай],tblClassScores[Класс],Есептеулер!$C10,tblClassScores[Түр],Есептеулер!AE$5)*Параметрлер!G13,\"\")","v":""},{"$f":"IFERROR(AVERAGEIFS(tblClassScores[Ұпай],tblClassScores[Класс],Есептеулер!$C10,tblClassScores[Түр],Есептеулер!AF$5)*Параметрлер!H13,\"\")","v":""},{"$f":"IFERROR(AVERAGEIFS(tblClassScores[Ұпай],tblClassScores[Класс],Есептеулер!$C10,tblClassScores[Түр],Есептеулер!AG$5)*Параметрлер!I13,\"\")","v":0.15000000000000002},{"$f":"IFERROR(AVERAGEIFS(tblClassScores[Ұпай],tblClassScores[Класс],Есептеулер!$C10,tblClassScores[Түр],Есептеулер!AH$5)*Параметрлер!J13,\"\")","v":""},{"$f":"IFERROR(AVERAGEIFS(tblClassScores[Ұпай],tblClassScores[Класс],Есептеулер!$C10,tblClassScores[Түр],Есептеулер!AI$5)*Параметрлер!K13,\"\")","v":""},0.15000000000000002,{"$f":"SUMIFS(Параметрлер!E13:K13,Есептеулер!AC10:AI10,\">0\")","v":0.2},{"v":0.7500000000000001,"d":"75%"},2,"C"]
[null,null,{"$f":"IF(Параметрлер!C14=\"\",\"\",Параметрлер!C14)","v":"Испан тілі"},{"v":0.5,"d":"50%"},"","","","","","","","","","","","","","","","","","","","","","","","",{"$f":"IFERROR(AVERAGEIFS(tblClassScores[Ұпай],tblClassScores[Класс],Есептеулер!$C11,tblClassScores[Түр],Есептеулер!AC$5)*Параметрлер!E14,\"\")","v":0.05},{"$f":"IFERROR(AVERAGEIFS(tblClassScores[Ұпай],tblClassScores[Класс],Есептеулер!$C11,tblClassScores[Түр],Есептеулер!AD$5)*Параметрлер!F14,\"\")","v":""},{"$f":"IFERROR(AVERAGEIFS(tblClassScores[Ұпай],tblClassScores[Класс],Есептеулер!$C11,tblClassScores[Түр],Есептеулер!AE$5)*Параметрлер!G14,\"\")","v":""},{"$f":"IFERROR(AVERAGEIFS(tblClassScores[Ұпай],tblClassScores[Класс],Есептеулер!$C11,tblClassScores[Түр],Есептеулер!AF$5)*Параметрлер!H14,\"\")","v":""},{"$f":"IFERROR(AVERAGEIFS(tblClassScores[Ұпай],tblClassScores[Класс],Есептеулер!$C11,tblClassScores[Түр],Есептеулер!AG$5)*Параметрлер!I14,\"\")","v":""},{"$f":"IFERROR(AVERAGEIFS(tblClassScores[Ұпай],tblClassScores[Класс],Есептеулер!$C11,tblClassScores[Түр],Есептеулер!AH$5)*Параметрлер!J14,\"\")","v":""},{"$f":"IFERROR(AVERAGEIFS(tblClassScores[Ұпай],tblClassScores[Класс],Есептеулер!$C11,tblClassScores[Түр],Есептеулер!AI$5)*Параметрлер!K14,\"\")","v":""},0.05,{"$f":"SUMIFS(Параметрлер!E14:K14,Есептеулер!AC11:AI11,\">0\")","v":0.1},{"v":0.5,"d":"50%"},0,"F"]
[null,null,{"$f":"IF(Параметрлер!C15=\"\",\"\",Параметрлер!C15)","v":"Құрылым"},{"v":0.95,"d":"95%"},"","","","","","","","","","","","","","","","","","","","","","","","",{"$f":"IFERROR(AVERAGEIFS(tblClassScores[Ұпай],tblClassScores[Класс],Есептеулер!$C12,tblClassScores[Түр],Есептеулер!AC$5)*Параметрлер!E15,\"\")","v":""},{"$f":"IFERROR(AVERAGEIFS(tblClassScores[Ұпай],tblClassScores[Класс],Есептеулер!$C12,tblClassScores[Түр],Есептеулер!AD$5)*Параметрлер!F15,\"\")","v":0.1425},{"$f":"IFERROR(AVERAGEIFS(tblClassScores[Ұпай],tblClassScores[Класс],Есептеулер!$C12,tblClassScores[Түр],Есептеулер!AE$5)*Параметрлер!G15,\"\")","v":""},{"$f":"IFERROR(AVERAGEIFS(tblClassScores[Ұпай],tblClassScores[Класс],Есептеулер!$C12,tblClassScores[Түр],Есептеулер!AF$5)*Параметрлер!H15,\"\")","v":""},{"$f":"IFERROR(AVERAGEIFS(tblClassScores[Ұпай],tblClassScores[Класс],Есептеулер!$C12,tblClassScores[Түр],Есептеулер!AG$5)*Параметрлер!I15,\"\")","v":""},{"$f":"IFERROR(AVERAGEIFS(tblClassScores[Ұпай],tblClassScores[Класс],Есептеулер!$C12,tblClassScores[Түр],Есептеулер!AH$5)*Параметрлер!J15,\"\")","v":""},{"$f":"IFERROR(AVERAGEIFS(tblClassScores[Ұпай],tblClassScores[Класс],Есептеулер!$C12,tblClassScores[Түр],Есептеулер!AI$5)*Параметрлер!K15,\"\")","v":""},0.1425,{"$f":"SUMIFS(Параметрлер!E15:K15,Есептеулер!AC12:AI12,\">0\")","v":0.15},{"v":0.95,"d":"95%"},4,"A"]
[null,null,{"$f":"IF(Параметрлер!C16=\"\",\"\",Параметрлер!C16)","v":""},"","","","","","","","","","","","","","","","","","","","","","","","","",{"$f":"IFERROR(AVERAGEIFS(tblClassScores[Ұпай],tblClassScores[Класс],Есептеулер!$C13,tblClassScores[Түр],Есептеулер!AC$5)*Параметрлер!E16,\"\")","v":""},{"$f":"IFERROR(AVERAGEIFS(tblClassScores[Ұпай],tblClassScores[Класс],Есептеулер!$C13,tblClassScores[Түр],Есептеулер!AD$5)*Параметрлер!F16,\"\")","v":""},{"$f":"IFERROR(AVERAGEIFS(tblClassScores[Ұпай],tblClassScores[Класс],Есептеулер!$C13,tblClassScores[Түр],Есептеулер!AE$5)*Параметрлер!G16,\"\")","v":""},{"$f":"IFERROR(AVERAGEIFS(tblClassScores[Ұпай],tblClassScores[Класс],Есептеулер!$C13,tblClassScores[Түр],Есептеулер!AF$5)*Параметрлер!H16,\"\")","v":""},{"$f":"IFERROR(AVERAGEIFS(tblClassScores[Ұпай],tblClassScores[Класс],Есептеулер!$C13,tblClassScores[Түр],Есептеулер!AG$5)*Параметрлер!I16,\"\")","v":""},{"$f":"IFERROR(AVERAGEIFS(tblClassScores[Ұпай],tblClassScores[Класс],Есептеулер!$C13,tblClassScores[Түр],Есептеулер!AH$5)*Параметрлер!J16,\"\")","v":""},{"$f":"IFERROR(AVERAGEIFS(tblClassScores[Ұпай],tblClassScores[Класс],Есептеулер!$C13,tblClassScores[Түр],Есептеулер!AI$5)*Параметрлер!K16,\"\")","v":""},{"$f":"SUM(AC13:AI13)","v":0},{"$f":"SUMIFS(Параметрлер!E16:K16,Есептеулер!AC13:AI13,\">0\")","v":0},{"$f":"IFERROR(AJ13/AK13,\"\")","v":""},"",""]
[null,null,{"$f":"IF(Параметрлер!C17=\"\",\"\",Параметрлер!C17)","v":""},"","","","","","","","","","","","","","","","","","","","","","","","","",{"$f":"IFERROR(AVERAGEIFS(tblClassScores[Ұпай],tblClassScores[Класс],Есептеулер!$C14,tblClassScores[Түр],Есептеулер!AC$5)*Параметрлер!E17,\"\")","v":""},{"$f":"IFERROR(AVERAGEIFS(tblClassScores[Ұпай],tblClassScores[Класс],Есептеулер!$C14,tblClassScores[Түр],Есептеулер!AD$5)*Параметрлер!F17,\"\")","v":""},{"$f":"IFERROR(AVERAGEIFS(tblClassScores[Ұпай],tblClassScores[Класс],Есептеулер!$C14,tblClassScores[Түр],Есептеулер!AE$5)*Параметрлер!G17,\"\")","v":""},{"$f":"IFERROR(AVERAGEIFS(tblClassScores[Ұпай],tblClassScores[Класс],Есептеулер!$C14,tblClassScores[Түр],Есептеулер!AF$5)*Параметрлер!H17,\"\")","v":""},{"$f":"IFERROR(AVERAGEIFS(tblClassScores[Ұпай],tblClassScores[Класс],Есептеулер!$C14,tblClassScores[Түр],Есептеулер!AG$5)*Параметрлер!I17,\"\")","v":""},{"$f":"IFERROR(AVERAGEIFS(tblClassScores[Ұпай],tblClassScores[Класс],Есептеулер!$C14,tblClassScores[Түр],Есептеулер!AH$5)*Параметрлер!J17,\"\")","v":""},{"$f":"IFERROR(AVERAGEIFS(tblClassScores[Ұпай],tblClassScores[Класс],Есептеулер!$C14,tblClassScores[Түр],Есептеулер!AI$5)*Параметрлер!K17,\"\")","v":""},0,{"$f":"SUMIFS(Параметрлер!E17:K17,Есептеулер!AC14:AI14,\">0\")","v":0},"","",""]
[null,null,{"$f":"IF(Параметрлер!C18=\"\",\"\",Параметрлер!C18)","v":""},"","","","","","","","","","","","","","","","","","","","","","","","","",{"$f":"IFERROR(AVERAGEIFS(tblClassScores[Ұпай],tblClassScores[Класс],Есептеулер!$C15,tblClassScores[Түр],Есептеулер!AC$5)*Параметрлер!E18,\"\")","v":""},{"$f":"IFERROR(AVERAGEIFS(tblClassScores[Ұпай],tblClassScores[Класс],Есептеулер!$C15,tblClassScores[Түр],Есептеулер!AD$5)*Параметрлер!F18,\"\")","v":""},{"$f":"IFERROR(AVERAGEIFS(tblClassScores[Ұпай],tblClassScores[Класс],Есептеулер!$C15,tblClassScores[Түр],Есептеулер!AE$5)*Параметрлер!G18,\"\")","v":""},{"$f":"IFERROR(AVERAGEIFS(tblClassScores[Ұпай],tblClassScores[Класс],Есептеулер!$C15,tblClassScores[Түр],Есептеулер!AF$5)*Параметрлер!H18,\"\")","v":""},{"$f":"IFERROR(AVERAGEIFS(tblClassScores[Ұпай],tblClassScores[Класс],Есептеулер!$C15,tblClassScores[Түр],Есептеулер!AG$5)*Параметрлер!I18,\"\")","v":""},{"$f":"IFERROR(AVERAGEIFS(tblClassScores[Ұпай],tblClassScores[Класс],Есептеулер!$C15,tblClassScores[Түр],Есептеулер!AH$5)*Параметрлер!J18,\"\")","v":""},{"$f":"IFERROR(AVERAGEIFS(tblClassScores[Ұпай],tblClassScores[Класс],Есептеулер!$C15,tblClassScores[Түр],Есептеулер!AI$5)*Параметрлер!K18,\"\")","v":""},0,{"$f":"SUMIFS(Параметрлер!E18:K18,Есептеулер!AC15:AI15,\">0\")","v":0},"","",""]
[null,null,{"$f":"IF(Параметрлер!C19=\"\",\"\",Параметрлер!C19)","v":""},"","","","","","","","","","","","","","","","","","","","","","","","","",{"$f":"IFERROR(AVERAGEIFS(tblClassScores[Ұпай],tblClassScores[Класс],Есептеулер!$C16,tblClassScores[Түр],Есептеулер!AC$5)*Параметрлер!E19,\"\")","v":""},{"$f":"IFERROR(AVERAGEIFS(tblClassScores[Ұпай],tblClassScores[Класс],Есептеулер!$C16,tblClassScores[Түр],Есептеулер!AD$5)*Параметрлер!F19,\"\")","v":""},{"$f":"IFERROR(AVERAGEIFS(tblClassScores[Ұпай],tblClassScores[Класс],Есептеулер!$C16,tblClassScores[Түр],Есептеулер!AE$5)*Параметрлер!G19,\"\")","v":""},{"$f":"IFERROR(AVERAGEIFS(tblClassScores[Ұпай],tblClassScores[Класс],Есептеулер!$C16,tblClassScores[Түр],Есептеулер!AF$5)*Параметрлер!H19,\"\")","v":""},{"$f":"IFERROR(AVERAGEIFS(tblClassScores[Ұпай],tblClassScores[Класс],Есептеулер!$C16,tblClassScores[Түр],Есептеулер!AG$5)*Параметрлер!I19,\"\")","v":""},{"$f":"IFERROR(AVERAGEIFS(tblClassScores[Ұпай],tblClassScores[Класс],Есептеулер!$C16,tblClassScores[Түр],Есептеулер!AH$5)*Параметрлер!J19,\"\")","v":""},{"$f":"IFERROR(AVERAGEIFS(tblClassScores[Ұпай],tblClassScores[Класс],Есептеулер!$C16,tblClassScores[Түр],Есептеулер!AI$5)*Параметрлер!K19,\"\")","v":""},0,{"$f":"SUMIFS(Параметрлер!E19:K19,Есептеулер!AC16:AI16,\">0\")","v":0},"","",""]
[null,null,{"$f":"IF(Параметрлер!C20=\"\",\"\",Параметрлер!C20)","v":""},"","","","","","","","","","","","","","","","","","","","","","","","","",{"$f":"IFERROR(AVERAGEIFS(tblClassScores[Ұпай],tblClassScores[Класс],Есептеулер!$C17,tblClassScores[Түр],Есептеулер!AC$5)*Параметрлер!E20,\"\")","v":""},{"$f":"IFERROR(AVERAGEIFS(tblClassScores[Ұпай],tblClassScores[Класс],Есептеулер!$C17,tblClassScores[Түр],Есептеулер!AD$5)*Параметрлер!F20,\"\")","v":""},{"$f":"IFERROR(AVERAGEIFS(tblClassScores[Ұпай],tblClassScores[Класс],Есептеулер!$C17,tblClassScores[Түр],Есептеулер!AE$5)*Параметрлер!G20,\"\")","v":""},{"$f":"IFERROR(AVERAGEIFS(tblClassScores[Ұпай],tblClassScores[Класс],Есептеулер!$C17,tblClassScores[Түр],Есептеулер!AF$5)*Параметрлер!H20,\"\")","v":""},{"$f":"IFERROR(AVERAGEIFS(tblClassScores[Ұпай],tblClassScores[Класс],Есептеулер!$C17,tblClassScores[Түр],Есептеулер!AG$5)*Параметрлер!I20,\"\")","v":""},{"$f":"IFERROR(AVERAGEIFS(tblClassScores[Ұпай],tblClassScores[Класс],Есептеулер!$C17,tblClassScores[Түр],Есептеулер!AH$5)*Параметрлер!J20,\"\")","v":""},{"$f":"IFERROR(AVERAGEIFS(tblClassScores[Ұпай],tblClassScores[Класс],Есептеулер!$C17,tblClassScores[Түр],Есептеулер!AI$5)*Параметрлер!K20,\"\")","v":""},0,{"$f":"SUMIFS(Параметрлер!E20:K20,Есептеулер!AC17:AI17,\">0\")","v":0},"","",""]
[null,null,{"$f":"IF(Параметрлер!C21=\"\",\"\",Параметрлер!C21)","v":""},"","","","","","","","","","","","","","","","","","","","","","","","","",{"$f":"IFERROR(AVERAGEIFS(tblClassScores[Ұпай],tblClassScores[Класс],Есептеулер!$C18,tblClassScores[Түр],Есептеулер!AC$5)*Параметрлер!E21,\"\")","v":""},{"$f":"IFERROR(AVERAGEIFS(tblClassScores[Ұпай],tblClassScores[Класс],Есептеулер!$C18,tblClassScores[Түр],Есептеулер!AD$5)*Параметрлер!F21,\"\")","v":""},{"$f":"IFERROR(AVERAGEIFS(tblClassScores[Ұпай],tblClassScores[Класс],Есептеулер!$C18,tblClassScores[Түр],Есептеулер!AE$5)*Параметрлер!G21,\"\")","v":""},{"$f":"IFERROR(AVERAGEIFS(tblClassScores[Ұпай],tblClassScores[Класс],Есептеулер!$C18,tblClassScores[Түр],Есептеулер!AF$5)*Параметрлер!H21,\"\")","v":""},{"$f":"IFERROR(AVERAGEIFS(tblClassScores[Ұпай],tblClassScores[Класс],Есептеулер!$C18,tblClassScores[Түр],Есептеулер!AG$5)*Параметрлер!I21,\"\")","v":""},{"$f":"IFERROR(AVERAGEIFS(tblClassScores[Ұпай],tblClassScores[Класс],Есептеулер!$C18,tblClassScores[Түр],Есептеулер!AH$5)*Параметрлер!J21,\"\")","v":""},{"$f":"IFERROR(AVERAGEIFS(tblClassScores[Ұпай],tblClassScores[Класс],Есептеулер!$C18,tblClassScores[Түр],Есептеулер!AI$5)*Параметрлер!K21,\"\")","v":""},0,{"$f":"SUMIFS(Параметрлер!E21:K21,Есептеулер!AC18:AI18,\">0\")","v":0},"","",""]
[null,null,{"$f":"IF(Параметрлер!C22=\"\",\"\",Параметрлер!C22)","v":""},"","","","","","","","","","","","","","","","","","","","","","","","","",{"$f":"IFERROR(AVERAGEIFS(tblClassScores[Ұпай],tblClassScores[Класс],Есептеулер!$C19,tblClassScores[Түр],Есептеулер!AC$5)*Параметрлер!E22,\"\")","v":""},{"$f":"IFERROR(AVERAGEIFS(tblClassScores[Ұпай],tblClassScores[Класс],Есептеулер!$C19,tblClassScores[Түр],Есептеулер!AD$5)*Параметрлер!F22,\"\")","v":""},{"$f":"IFERROR(AVERAGEIFS(tblClassScores[Ұпай],tblClassScores[Класс],Есептеулер!$C19,tblClassScores[Түр],Есептеулер!AE$5)*Параметрлер!G22,\"\")","v":""},{"$f":"IFERROR(AVERAGEIFS(tblClassScores[Ұпай],tblClassScores[Класс],Есептеулер!$C19,tblClassScores[Түр],Есептеулер!AF$5)*Параметрлер!H22,\"\")","v":""},{"$f":"IFERROR(AVERAGEIFS(tblClassScores[Ұпай],tblClassScores[Класс],Есептеулер!$C19,tblClassScores[Түр],Есептеулер!AG$5)*Параметрлер!I22,\"\")","v":""},{"$f":"IFERROR(AVERAGEIFS(tblClassScores[Ұпай],tblClassScores[Класс],Есептеулер!$C19,tblClassScores[Түр],Есептеулер!AH$5)*Параметрлер!J22,\"\")","v":""},{"$f":"IFERROR(AVERAGEIFS(tblClassScores[Ұпай],tblClassScores[Класс],Есептеулер!$C19,tblClassScores[Түр],Есептеулер!AI$5)*Параметрлер!K22,\"\")","v":""},0,{"$f":"SUMIFS(Параметрлер!E22:K22,Есептеулер!AC19:AI19,\">0\")","v":0},"","",""]
[null,null,{"$f":"IF(Параметрлер!C23=\"\",\"\",Параметрлер!C23)","v":""},"","","","","","","","","","","","","","","","","","","","","","","","","",{"$f":"IFERROR(AVERAGEIFS(tblClassScores[Ұпай],tblClassScores[Класс],Есептеулер!$C20,tblClassScores[Түр],Есептеулер!AC$5)*Параметрлер!E23,\"\")","v":""},{"$f":"IFERROR(AVERAGEIFS(tblClassScores[Ұпай],tblClassScores[Класс],Есептеулер!$C20,tblClassScores[Түр],Есептеулер!AD$5)*Параметрлер!F23,\"\")","v":""},{"$f":"IFERROR(AVERAGEIFS(tblClassScores[Ұпай],tblClassScores[Класс],Есептеулер!$C20,tblClassScores[Түр],Есептеулер!AE$5)*Параметрлер!G23,\"\")","v":""},{"$f":"IFERROR(AVERAGEIFS(tblClassScores[Ұпай],tblClassScores[Класс],Есептеулер!$C20,tblClassScores[Түр],Есептеулер!AF$5)*Параметрлер!H23,\"\")","v":""},{"$f":"IFERROR(AVERAGEIFS(tblClassScores[Ұпай],tblClassScores[Класс],Есептеулер!$C20,tblClassScores[Түр],Есептеулер!AG$5)*Параметрлер!I23,\"\")","v":""},{"$f":"IFERROR(AVERAGEIFS(tblClassScores[Ұпай],tblClassScores[Класс],Есептеулер!$C20,tblClassScores[Түр],Есептеулер!AH$5)*Параметрлер!J23,\"\")","v":""},{"$f":"IFERROR(AVERAGEIFS(tblClassScores[Ұпай],tblClassScores[Класс],Есептеулер!$C20,tblClassScores[Түр],Есептеулер!AI$5)*Параметрлер!K23,\"\")","v":""},0,{"$f":"SUMIFS(Параметрлер!E23:K23,Есептеулер!AC20:AI20,\">0\")","v":0},"","",""]
[null,null,{"$f":"IF(Параметрлер!C24=\"\",\"\",Параметрлер!C24)","v":""},"","","","","","","","","","","","","","","","","","","","","","","","","",{"$f":"IFERROR(AVERAGEIFS(tblClassScores[Ұпай],tblClassScores[Класс],Есептеулер!$C21,tblClassScores[Түр],Есептеулер!AC$5)*Параметрлер!E24,\"\")","v":""},{"$f":"IFERROR(AVERAGEIFS(tblClassScores[Ұпай],tblClassScores[Класс],Есептеулер!$C21,tblClassScores[Түр],Есептеулер!AD$5)*Параметрлер!F24,\"\")","v":""},{"$f":"IFERROR(AVERAGEIFS(tblClassScores[Ұпай],tblClassScores[Класс],Есептеулер!$C21,tblClassScores[Түр],Есептеулер!AE$5)*Параметрлер!G24,\"\")","v":""},{"$f":"IFERROR(AVERAGEIFS(tblClassScores[Ұпай],tblClassScores[Класс],Есептеулер!$C21,tblClassScores[Түр],Есептеулер!AF$5)*Параметрлер!H24,\"\")","v":""},{"$f":"IFERROR(AVERAGEIFS(tblClassScores[Ұпай],tblClassScores[Класс],Есептеулер!$C21,tblClassScores[Түр],Есептеулер!AG$5)*Параметрлер!I24,\"\")","v":""},{"$f":"IFERROR(AVERAGEIFS(tblClassScores[Ұпай],tblClassScores[Класс],Есептеулер!$C21,tblClassScores[Түр],Есептеулер!AH$5)*Параметрлер!J24,\"\")","v":""},{"$f":"IFERROR(AVERAGEIFS(tblClassScores[Ұпай],tblClassScores[Класс],Есептеулер!$C21,tblClassScores[Түр],Есептеулер!AI$5)*Параметрлер!K24,\"\")","v":""},0,{"$f":"SUMIFS(Параметрлер!E24:K24,Есептеулер!AC21:AI21,\">0\")","v":0},"","",""]
[null,null,{"$f":"IF(Параметрлер!C25=\"\",\"\",Параметрлер!C25)","v":""},"","","","","","","","","","","","","","","","","","","","","","","","","",{"$f":"IFERROR(AVERAGEIFS(tblClassScores[Ұпай],tblClassScores[Класс],Есептеулер!$C22,tblClassScores[Түр],Есептеулер!AC$5)*Параметрлер!E25,\"\")","v":""},{"$f":"IFERROR(AVERAGEIFS(tblClassScores[Ұпай],tblClassScores[Класс],Есептеулер!$C22,tblClassScores[Түр],Есептеулер!AD$5)*Параметрлер!F25,\"\")","v":""},{"$f":"IFERROR(AVERAGEIFS(tblClassScores[Ұпай],tblClassScores[Класс],Есептеулер!$C22,tblClassScores[Түр],Есептеулер!AE$5)*Параметрлер!G25,\"\")","v":""},{"$f":"IFERROR(AVERAGEIFS(tblClassScores[Ұпай],tblClassScores[Класс],Есептеулер!$C22,tblClassScores[Түр],Есептеулер!AF$5)*Параметрлер!H25,\"\")","v":""},{"$f":"IFERROR(AVERAGEIFS(tblClassScores[Ұпай],tblClassScores[Класс],Есептеулер!$C22,tblClassScores[Түр],Есептеулер!AG$5)*Параметрлер!I25,\"\")","v":""},{"$f":"IFERROR(AVERAGEIFS(tblClassScores[Ұпай],tblClassScores[Класс],Есептеулер!$C22,tblClassScores[Түр],Есептеулер!AH$5)*Параметрлер!J25,\"\")","v":""},{"$f":"IFERROR(AVERAGEIFS(tblClassScores[Ұпай],tblClassScores[Класс],Есептеулер!$C22,tblClassScores[Түр],Есептеулер!AI$5)*Параметрлер!K25,\"\")","v":""},0,{"$f":"SUMIFS(Параметрлер!E25:K25,Есептеулер!AC22:AI22,\">0\")","v":0},"","",""]
[null,null,{"$f":"IF(Параметрлер!C26=\"\",\"\",Параметрлер!C26)","v":""},"","","","","","","","","","","","","","","","","","","","","","","","","",{"$f":"IFERROR(AVERAGEIFS(tblClassScores[Ұпай],tblClassScores[Класс],Есептеулер!$C23,tblClassScores[Түр],Есептеулер!AC$5)*Параметрлер!E26,\"\")","v":""},{"$f":"IFERROR(AVERAGEIFS(tblClassScores[Ұпай],tblClassScores[Класс],Есептеулер!$C23,tblClassScores[Түр],Есептеулер!AD$5)*Параметрлер!F26,\"\")","v":""},{"$f":"IFERROR(AVERAGEIFS(tblClassScores[Ұпай],tblClassScores[Класс],Есептеулер!$C23,tblClassScores[Түр],Есептеулер!AE$5)*Параметрлер!G26,\"\")","v":""},{"$f":"IFERROR(AVERAGEIFS(tblClassScores[Ұпай],tblClassScores[Класс],Есептеулер!$C23,tblClassScores[Түр],Есептеулер!AF$5)*Параметрлер!H26,\"\")","v":""},{"$f":"IFERROR(AVERAGEIFS(tblClassScores[Ұпай],tblClassScores[Класс],Есептеулер!$C23,tblClassScores[Түр],Есептеулер!AG$5)*Параметрлер!I26,\"\")","v":""},{"$f":"IFERROR(AVERAGEIFS(tblClassScores[Ұпай],tblClassScores[Класс],Есептеулер!$C23,tblClassScores[Түр],Есептеулер!AH$5)*Параметрлер!J26,\"\")","v":""},{"$f":"IFERROR(AVERAGEIFS(tblClassScores[Ұпай],tblClassScores[Класс],Есептеулер!$C23,tblClassScores[Түр],Есептеулер!AI$5)*Параметрлер!K26,\"\")","v":""},0,{"$f":"SUMIFS(Параметрлер!E26:K26,Есептеулер!AC23:AI23,\">0\")","v":0},"","",""]
[null,null,{"$f":"IF(Параметрлер!C27=\"\",\"\",Параметрлер!C27)","v":""},"","","","","","","","","","","","","","","","","","","","","","","","","",{"$f":"IFERROR(AVERAGEIFS(tblClassScores[Ұпай],tblClassScores[Класс],Есептеулер!$C24,tblClassScores[Түр],Есептеулер!AC$5)*Параметрлер!E27,\"\")","v":""},{"$f":"IFERROR(AVERAGEIFS(tblClassScores[Ұпай],tblClassScores[Класс],Есептеулер!$C24,tblClassScores[Түр],Есептеулер!AD$5)*Параметрлер!F27,\"\")","v":""},{"$f":"IFERROR(AVERAGEIFS(tblClassScores[Ұпай],tblClassScores[Класс],Есептеулер!$C24,tblClassScores[Түр],Есептеулер!AE$5)*Параметрлер!G27,\"\")","v":""},{"$f":"IFERROR(AVERAGEIFS(tblClassScores[Ұпай],tblClassScores[Класс],Есептеулер!$C24,tblClassScores[Түр],Есептеулер!AF$5)*Параметрлер!H27,\"\")","v":""},{"$f":"IFERROR(AVERAGEIFS(tblClassScores[Ұпай],tblClassScores[Класс],Есептеулер!$C24,tblClassScores[Түр],Есептеулер!AG$5)*Параметрлер!I27,\"\")","v":""},{"$f":"IFERROR(AVERAGEIFS(tblClassScores[Ұпай],tblClassScores[Класс],Есептеулер!$C24,tblClassScores[Түр],Есептеулер!AH$5)*Параметрлер!J27,\"\")","v":""},{"$f":"IFERROR(AVERAGEIFS(tblClassScores[Ұпай],tblClassScores[Класс],Есептеулер!$C24,tblClassScores[Түр],Есептеулер!AI$5)*Параметрлер!K27,\"\")","v":""},0,{"$f":"SUMIFS(Параметрлер!E27:K27,Есептеулер!AC24:AI24,\">0\")","v":0},"","",""]
[null,null,{"$f":"IF(Параметрлер!C28=\"\",\"\",Параметрлер!C28)","v":""},"","","","","","","","","","","","","","","","","","","","","","","","","",{"$f":"IFERROR(AVERAGEIFS(tblClassScores[Ұпай],tblClassScores[Класс],Есептеулер!$C25,tblClassScores[Түр],Есептеулер!AC$5)*Параметрлер!E28,\"\")","v":""},{"$f":"IFERROR(AVERAGEIFS(tblClassScores[Ұпай],tblClassScores[Класс],Есептеулер!$C25,tblClassScores[Түр],Есептеулер!AD$5)*Параметрлер!F28,\"\")","v":""},{"$f":"IFERROR(AVERAGEIFS(tblClassScores[Ұпай],tblClassScores[Класс],Есептеулер!$C25,tblClassScores[Түр],Есептеулер!AE$5)*Параметрлер!G28,\"\")","v":""},{"$f":"IFERROR(AVERAGEIFS(tblClassScores[Ұпай],tblClassScores[Класс],Есептеулер!$C25,tblClassScores[Түр],Есептеулер!AF$5)*Параметрлер!H28,\"\")","v":""},{"$f":"IFERROR(AVERAGEIFS(tblClassScores[Ұпай],tblClassScores[Класс],Есептеулер!$C25,tblClassScores[Түр],Есептеулер!AG$5)*Параметрлер!I28,\"\")","v":""},{"$f":"IFERROR(AVERAGEIFS(tblClassScores[Ұпай],tblClassScores[Класс],Есептеулер!$C25,tblClassScores[Түр],Есептеулер!AH$5)*Параметрлер!J28,\"\")","v":""},{"$f":"IFERROR(AVERAGEIFS(tblClassScores[Ұпай],tblClassScores[Класс],Есептеулер!$C25,tblClassScores[Түр],Есептеулер!AI$5)*Параметрлер!K28,\"\")","v":""},0,{"$f":"SUMIFS(Параметрлер!E28:K28,Есептеулер!AC25:AI25,\">0\")","v":0},"","",""]
[null,null,{"$f":"IF(Параметрлер!C29=\"\",\"\",Параметрлер!C29)","v":""},"","","","","","","","","","","","","","","","","","","","","","","","","",{"$f":"IFERROR(AVERAGEIFS(tblClassScores[Ұпай],tblClassScores[Класс],Есептеулер!$C26,tblClassScores[Түр],Есептеулер!AC$5)*Параметрлер!E29,\"\")","v":""},{"$f":"IFERROR(AVERAGEIFS(tblClassScores[Ұпай],tblClassScores[Класс],Есептеулер!$C26,tblClassScores[Түр],Есептеулер!AD$5)*Параметрлер!F29,\"\")","v":""},{"$f":"IFERROR(AVERAGEIFS(tblClassScores[Ұпай],tblClassScores[Класс],Есептеулер!$C26,tblClassScores[Түр],Есептеулер!AE$5)*Параметрлер!G29,\"\")","v":""},{"$f":"IFERROR(AVERAGEIFS(tblClassScores[Ұпай],tblClassScores[Класс],Есептеулер!$C26,tblClassScores[Түр],Есептеулер!AF$5)*Параметрлер!H29,\"\")","v":""},{"$f":"IFERROR(AVERAGEIFS(tblClassScores[Ұпай],tblClassScores[Класс],Есептеулер!$C26,tblClassScores[Түр],Есептеулер!AG$5)*Параметрлер!I29,\"\")","v":""},{"$f":"IFERROR(AVERAGEIFS(tblClassScores[Ұпай],tblClassScores[Класс],Есептеулер!$C26,tblClassScores[Түр],Есептеулер!AH$5)*Параметрлер!J29,\"\")","v":""},{"$f":"IFERROR(AVERAGEIFS(tblClassScores[Ұпай],tblClassScores[Класс],Есептеулер!$C26,tblClassScores[Түр],Есептеулер!AI$5)*Параметрлер!K29,\"\")","v":""},0,{"$f":"SUMIFS(Параметрлер!E29:K29,Есептеулер!AC26:AI26,\">0\")","v":0},"","",""]
[null,null,{"$f":"IF(Параметрлер!C30=\"\",\"\",Параметрлер!C30)","v":""},"","","","","","","","","","","","","","","","","","","","","","","","","",{"$f":"IFERROR(AVERAGEIFS(tblClassScores[Ұпай],tblClassScores[Класс],Есептеулер!$C27,tblClassScores[Түр],Есептеулер!AC$5)*Параметрлер!E30,\"\")","v":""},{"$f":"IFERROR(AVERAGEIFS(tblClassScores[Ұпай],tblClassScores[Класс],Есептеулер!$C27,tblClassScores[Түр],Есептеулер!AD$5)*Параметрлер!F30,\"\")","v":""},{"$f":"IFERROR(AVERAGEIFS(tblClassScores[Ұпай],tblClassScores[Класс],Есептеулер!$C27,tblClassScores[Түр],Есептеулер!AE$5)*Параметрлер!G30,\"\")","v":""},{"$f":"IFERROR(AVERAGEIFS(tblClassScores[Ұпай],tblClassScores[Класс],Есептеулер!$C27,tblClassScores[Түр],Есептеулер!AF$5)*Параметрлер!H30,\"\")","v":""},{"$f":"IFERROR(AVERAGEIFS(tblClassScores[Ұпай],tblClassScores[Класс],Есептеулер!$C27,tblClassScores[Түр],Есептеулер!AG$5)*Параметрлер!I30,\"\")","v":""},{"$f":"IFERROR(AVERAGEIFS(tblClassScores[Ұпай],tblClassScores[Класс],Есептеулер!$C27,tblClassScores[Түр],Есептеулер!AH$5)*Параметрлер!J30,\"\")","v":""},{"$f":"IFERROR(AVERAGEIFS(tblClassScores[Ұпай],tblClassScores[Класс],Есептеулер!$C27,tblClassScores[Түр],Есептеулер!AI$5)*Параметрлер!K30,\"\")","v":""},0,{"$f":"SUMIFS(Параметрлер!E30:K30,Есептеулер!AC27:AI27,\">0\")","v":0},"","",""]
[null,null,{"$f":"IF(Параметрлер!C31=\"\",\"\",Параметрлер!C31)","v":""},"","","","","","","","","","","","","","","","","","","","","","","","","",{"$f":"IFERROR(AVERAGEIFS(tblClassScores[Ұпай],tblClassScores[Класс],Есептеулер!$C28,tblClassScores[Түр],Есептеулер!AC$5)*Параметрлер!E31,\"\")","v":""},{"$f":"IFERROR(AVERAGEIFS(tblClassScores[Ұпай],tblClassScores[Класс],Есептеулер!$C28,tblClassScores[Түр],Есептеулер!AD$5)*Параметрлер!F31,\"\")","v":""},{"$f":"IFERROR(AVERAGEIFS(tblClassScores[Ұпай],tblClassScores[Класс],Есептеулер!$C28,tblClassScores[Түр],Есептеулер!AE$5)*Параметрлер!G31,\"\")","v":""},{"$f":"IFERROR(AVERAGEIFS(tblClassScores[Ұпай],tblClassScores[Класс],Есептеулер!$C28,tblClassScores[Түр],Есептеулер!AF$5)*Параметрлер!H31,\"\")","v":""},{"$f":"IFERROR(AVERAGEIFS(tblClassScores[Ұпай],tblClassScores[Класс],Есептеулер!$C28,tblClassScores[Түр],Есептеулер!AG$5)*Параметрлер!I31,\"\")","v":""},{"$f":"IFERROR(AVERAGEIFS(tblClassScores[Ұпай],tblClassScores[Класс],Есептеулер!$C28,tblClassScores[Түр],Есептеулер!AH$5)*Параметрлер!J31,\"\")","v":""},{"$f":"IFERROR(AVERAGEIFS(tblClassScores[Ұпай],tblClassScores[Класс],Есептеулер!$C28,tblClassScores[Түр],Есептеулер!AI$5)*Параметрлер!K31,\"\")","v":""},0,{"$f":"SUMIFS(Параметрлер!E31:K31,Есептеулер!AC28:AI28,\">0\")","v":0},"","",""]
[null,null,{"$f":"IF(Параметрлер!C32=\"\",\"\",Параметрлер!C32)","v":""},"","","","","","","","","","","","","","","","","","","","","","","","","",{"$f":"IFERROR(AVERAGEIFS(tblClassScores[Ұпай],tblClassScores[Класс],Есептеулер!$C29,tblClassScores[Түр],Есептеулер!AC$5)*Параметрлер!E32,\"\")","v":""},{"$f":"IFERROR(AVERAGEIFS(tblClassScores[Ұпай],tblClassScores[Класс],Есептеулер!$C29,tblClassScores[Түр],Есептеулер!AD$5)*Параметрлер!F32,\"\")","v":""},{"$f":"IFERROR(AVERAGEIFS(tblClassScores[Ұпай],tblClassScores[Класс],Есептеулер!$C29,tblClassScores[Түр],Есептеулер!AE$5)*Параметрлер!G32,\"\")","v":""},{"$f":"IFERROR(AVERAGEIFS(tblClassScores[Ұпай],tblClassScores[Класс],Есептеулер!$C29,tblClassScores[Түр],Есептеулер!AF$5)*Параметрлер!H32,\"\")","v":""},{"$f":"IFERROR(AVERAGEIFS(tblClassScores[Ұпай],tblClassScores[Класс],Есептеулер!$C29,tblClassScores[Түр],Есептеулер!AG$5)*Параметрлер!I32,\"\")","v":""},{"$f":"IFERROR(AVERAGEIFS(tblClassScores[Ұпай],tblClassScores[Класс],Есептеулер!$C29,tblClassScores[Түр],Есептеулер!AH$5)*Параметрлер!J32,\"\")","v":""},{"$f":"IFERROR(AVERAGEIFS(tblClassScores[Ұпай],tblClassScores[Класс],Есептеулер!$C29,tblClassScores[Түр],Есептеулер!AI$5)*Параметрлер!K32,\"\")","v":""},0,{"$f":"SUMIFS(Параметрлер!E32:K32,Есептеулер!AC29:AI29,\">0\")","v":0},"","",""]
[null,null,{"$f":"IF(Параметрлер!C33=\"\",\"\",Параметрлер!C33)","v":""},"","","","","","","","","","","","","","","","","","","","","","","","","",{"$f":"IFERROR(AVERAGEIFS(tblClassScores[Ұпай],tblClassScores[Класс],Есептеулер!$C30,tblClassScores[Түр],Есептеулер!AC$5)*Параметрлер!E33,\"\")","v":""},{"$f":"IFERROR(AVERAGEIFS(tblClassScores[Ұпай],tblClassScores[Класс],Есептеулер!$C30,tblClassScores[Түр],Есептеулер!AD$5)*Параметрлер!F33,\"\")","v":""},{"$f":"IFERROR(AVERAGEIFS(tblClassScores[Ұпай],tblClassScores[Класс],Есептеулер!$C30,tblClassScores[Түр],Есептеулер!AE$5)*Параметрлер!G33,\"\")","v":""},{"$f":"IFERROR(AVERAGEIFS(tblClassScores[Ұпай],tblClassScores[Класс],Есептеулер!$C30,tblClassScores[Түр],Есептеулер!AF$5)*Параметрлер!H33,\"\")","v":""},{"$f":"IFERROR(AVERAGEIFS(tblClassScores[Ұпай],tblClassScores[Класс],Есептеулер!$C30,tblClassScores[Түр],Есептеулер!AG$5)*Параметрлер!I33,\"\")","v":""},{"$f":"IFERROR(AVERAGEIFS(tblClassScores[Ұпай],tblClassScores[Класс],Есептеулер!$C30,tblClassScores[Түр],Есептеулер!AH$5)*Параметрлер!J33,\"\")","v":""},{"$f":"IFERROR(AVERAGEIFS(tblClassScores[Ұпай],tblClassScores[Класс],Есептеулер!$C30,tblClassScores[Түр],Есептеулер!AI$5)*Параметрлер!K33,\"\")","v":""},0,{"$f":"SUMIFS(Параметрлер!E33:K33,Есептеулер!AC30:AI30,\">0\")","v":0},"","",""]
[]
[]
[null,1,{"$f":"'Ұпай бақылағыш'!C4&COUNTIF('Ұпай бақылағыш'!$C$4:C4,'Ұпай бақылағыш'!C4)","v":"Заманауи француз тілі1"}]
[null,2,{"$f":"'Ұпай бақылағыш'!C5&COUNTIF('Ұпай бақылағыш'!$C$4:C5,'Ұпай бақылағыш'!C5)","v":"Java ішіндегі қосымша бағдарламалау1"}]
[null,3,{"$f":"'Ұпай бақылағыш'!C6&COUNTIF('Ұпай бақылағыш'!$C$4:C6,'Ұпай бақылағыш'!C6)","v":"Испан тілі1"}]
[null,4,{"$f":"'Ұпай бақылағыш'!C7&COUNTIF('Ұпай бақылағыш'!$C$4:C7,'Ұпай бақылағыш'!C7)","v":"Теоретикалық физика1"}]
[null,5,{"$f":"'Ұпай бақылағыш'!C8&COUNTIF('Ұпай бақылағыш'!$C$4:C8,'Ұпай бақылағыш'!C8)","v":"Заманауи француз тілі2"}]
[null,6,{"$f":"'Ұпай бақылағыш'!C9&COUNTIF('Ұпай бақылағыш'!$C$4:C9,'Ұпай бақылағыш'!C9)","v":"Заманауи француз тілі3"}]
[null,7,{"$f":"'Ұпай бақылағыш'!C10&COUNTIF('Ұпай бақылағыш'!$C$4:C10,'Ұпай бақылағыш'!C10)","v":"Құрылым1"}]
[null,8,{"$f":"'Ұпай бақылағыш'!C11&COUNTIF('Ұпай бақылағыш'!$C$4:C11,'Ұпай бақылағыш'!C11)","v":"1-математика1"}]
[null,9,{"$f":"'Ұпай бақылағыш'!C12&COUNTIF('Ұпай бақылағыш'!$C$4:C12,'Ұпай бақылағыш'!C12)","v":"2-математика1"}]
[null,10,{"$f":"'Ұпай бақылағыш'!C13&COUNTIF('Ұпай бақылағыш'!$C$4:C14,'Ұпай бақылағыш'!C13)","v":"1-математика2"}]
[null,11,{"$f":"'Ұпай бақылағыш'!C14&COUNTIF('Ұпай бақылағыш'!$C$4:C14,'Ұпай бақылағыш'!C14)","v":"2-математика2"}]
[null,12,{"$f":"'Ұпай бақылағыш'!C15&COUNTIF('Ұпай бақылағыш'!$C$4:C15,'Ұпай бақылағыш'!C15)","v":"0"}]
[null,13,{"$f":"'Ұпай бақылағыш'!C16&COUNTIF('Ұпай бақылағыш'!$C$4:C16,'Ұпай бақылағыш'!C16)","v":"0"}]
[null,14,{"$f":"'Ұпай бақылағыш'!C17&COUNTIF('Ұпай бақылағыш'!$C$4:C17,'Ұпай бақылағыш'!C17)","v":"0"}]
[null,15,{"$f":"'Ұпай бақылағыш'!C18&COUNTIF('Ұпай бақылағыш'!$C$4:C18,'Ұпай бақылағыш'!C18)","v":"0"}]
[null,16,{"$f":"'Ұпай бақылағыш'!C19&COUNTIF('Ұпай бақылағыш'!$C$4:C19,'Ұпай бақылағыш'!C19)","v":"0"}]
[null,17,{"$f":"'Ұпай бақылағыш'!C20&COUNTIF('Ұпай бақылағыш'!$C$4:C20,'Ұпай бақылағыш'!C20)","v":"0"}]
[null,18,{"$f":"'Ұпай бақылағыш'!C21&COUNTIF('Ұпай бақылағыш'!$C$4:C21,'Ұпай бақылағыш'!C21)","v":"0"}]
[null,19,{"$f":"'Ұпай бақылағыш'!C22&COUNTIF('Ұпай бақылағыш'!$C$4:C22,'Ұпай бақылағыш'!C22)","v":"0"}]
[null,20,{"$f":"'Ұпай бақылағыш'!C23&COUNTIF('Ұпай бақылағыш'!$C$4:C23,'Ұпай бақылағыш'!C23)","v":"0"}]
[null,21,{"$f":"'Ұпай бақылағыш'!C24&COUNTIF('Ұпай бақылағыш'!$C$4:C24,'Ұпай бақылағыш'!C24)","v":"0"}]
[null,22,{"$f":"'Ұпай бақылағыш'!C25&COUNTIF('Ұпай бақылағыш'!$C$4:C25,'Ұпай бақылағыш'!C25)","v":"0"}]
[null,23,{"$f":"'Ұпай бақылағыш'!C26&COUNTIF('Ұпай бақылағыш'!$C$4:C26,'Ұпай бақылағыш'!C26)","v":"0"}]
[null,24,{"$f":"'Ұпай бақылағыш'!C27&COUNTIF('Ұпай бақылағыш'!$C$4:C27,'Ұпай бақылағыш'!C27)","v":"0"}]
[null,25,{"$f":"'Ұпай бақылағыш'!C28&COUNTIF('Ұпай бақылағыш'!$C$4:C28,'Ұпай бақылағыш'!C28)","v":"0"}]
[null,26,{"$f":"'Ұпай бақылағыш'!C29&COUNTIF('Ұпай бақылағыш'!$C$4:C29,'Ұпай бақылағыш'!C29)","v":"0"}]
[null,27,{"$f":"'Ұпай бақылағыш'!C30&COUNTIF('Ұпай бақылағыш'!$C$4:C30,'Ұпай бақылағыш'!C30)","v":"0"}]
[null,28,{"$f":"'Ұпай бақылағыш'!C31&COUNTIF('Ұпай бақылағыш'!$C$4:C31,'Ұпай бақылағыш'!C31)","v":"0"}]
[null,29,{"$f":"'Ұпай бақылағыш'!C32&COUNTIF('Ұпай бақылағыш'!$C$4:C32,'Ұпай бақылағыш'!C32)","v":"0"}]
[null,30,{"$f":"'Ұпай бақылағыш'!C33&COUNTIF('Ұпай бақылағыш'!$C$4:C33,'Ұпай бақылағыш'!C33)","v":"0"}]
[null,31,{"$f":"'Ұпай бақылағыш'!C34&COUNTIF('Ұпай бақылағыш'!$C$4:C34,'Ұпай бақылағыш'!C34)","v":"0"}]
[null,32,{"$f":"'Ұпай бақылағыш'!C35&COUNTIF('Ұпай бақылағыш'!$C$4:C35,'Ұпай бақылағыш'!C35)","v":"0"}]
[null,33,{"$f":"'Ұпай бақылағыш'!C36&COUNTIF('Ұпай бақылағыш'!$C$4:C36,'Ұпай бақылағыш'!C36)","v":"0"}]
[null,34,{"$f":"'Ұпай бақылағыш'!C37&COUNTIF('Ұпай бақылағыш'!$C$4:C37,'Ұпай бақылағыш'!C37)","v":"0"}]
[null,35,{"$f":"'Ұпай бақылағыш'!C38&COUNTIF('Ұпай бақылағыш'!$C$4:C38,'Ұпай бақылағыш'!C38)","v":"0"}]
[null,36,{"$f":"'Ұпай бақылағыш'!C39&COUNTIF('Ұпай бақылағыш'!$C$4:C39,'Ұпай бақылағыш'!C39)","v":"0"}]
[null,37,{"$f":"'Ұпай бақылағыш'!C40&COUNTIF('Ұпай бақылағыш'!$C$4:C40,'Ұпай бақылағыш'!C40)","v":"0"}]
[null,38,{"$f":"'Ұпай бақылағыш'!C41&COUNTIF('Ұпай бақылағыш'!$C$4:C41,'Ұпай бақылағыш'!C41)","v":"0"}]
[null,39,{"$f":"'Ұпай бақылағыш'!C42&COUNTIF('Ұпай бақылағыш'!$C$4:C42,'Ұпай бақылағыш'!C42)","v":"0"}]
[null,40,{"$f":"'Ұпай бақылағыш'!C43&COUNTIF('Ұпай бақылағыш'!$C$4:C43,'Ұпай бақылағыш'!C43)","v":"0"}]
[null,41,{"$f":"'Ұпай бақылағыш'!C44&COUNTIF('Ұпай бақылағыш'!$C$4:C44,'Ұпай бақылағыш'!C44)","v":"0"}]
[null,42,{"$f":"'Ұпай бақылағыш'!C45&COUNTIF('Ұпай бақылағыш'!$C$4:C45,'Ұпай бақылағыш'!C45)","v":"0"}]
[null,43,{"$f":"'Ұпай бақылағыш'!C46&COUNTIF('Ұпай бақылағыш'!$C$4:C46,'Ұпай бақылағыш'!C46)","v":"0"}]
[null,44,{"$f":"'Ұпай бақылағыш'!C47&COUNTIF('Ұпай бақылағыш'!$C$4:C47,'Ұпай бақылағыш'!C47)","v":"0"}]
[null,45,{"$f":"'Ұпай бақылағыш'!C48&COUNTIF('Ұпай бақылағыш'!$C$4:C48,'Ұпай бақылағыш'!C48)","v":"0"}]
[null,46,{"$f":"'Ұпай бақылағыш'!C49&COUNTIF('Ұпай бақылағыш'!$C$4:C49,'Ұпай бақылағыш'!C49)","v":"0"}]
[null,47,{"$f":"'Ұпай бақылағыш'!C50&COUNTIF('Ұпай бақылағыш'!$C$4:C50,'Ұпай бақылағыш'!C50)","v":"0"}]
[null,48,{"$f":"'Ұпай бақылағыш'!C51&COUNTIF('Ұпай бақылағыш'!$C$4:C51,'Ұпай бақылағыш'!C51)","v":"0"}]
[null,49,{"$f":"'Ұпай бақылағыш'!C52&COUNTIF('Ұпай бақылағыш'!$C$4:C52,'Ұпай бақылағыш'!C52)","v":"0"}]
[null,50,{"$f":"'Ұпай бақылағыш'!C53&COUNTIF('Ұпай бақылағыш'!$C$4:C53,'Ұпай бақылағыш'!C53)","v":"0"}]
[null,51,{"$f":"'Ұпай бақылағыш'!C54&COUNTIF('Ұпай бақылағыш'!$C$4:C54,'Ұпай бақылағыш'!C54)","v":"0"}]
[null,52,{"$f":"'Ұпай бақылағыш'!C55&COUNTIF('Ұпай бақылағыш'!$C$4:C55,'Ұпай бақылағыш'!C55)","v":"0"}]
[null,53,{"$f":"'Ұпай бақылағыш'!C56&COUNTIF('Ұпай бақылағыш'!$C$4:C56,'Ұпай бақылағыш'!C56)","v":"0"}]
[null,54,{"$f":"'Ұпай бақылағыш'!C57&COUNTIF('Ұпай бақылағыш'!$C$4:C57,'Ұпай бақылағыш'!C57)","v":"0"}]
[null,55,{"$f":"'Ұпай бақылағыш'!C58&COUNTIF('Ұпай бақылағыш'!$C$4:C58,'Ұпай бақылағыш'!C58)","v":"0"}]
[null,56,{"$f":"'Ұпай бақылағыш'!C59&COUNTIF('Ұпай бақылағыш'!$C$4:C59,'Ұпай бақылағыш'!C59)","v":"0"}]
[null,57,{"$f":"'Ұпай бақылағыш'!C60&COUNTIF('Ұпай бақылағыш'!$C$4:C60,'Ұпай бақылағыш'!C60)","v":"0"}]
[null,58,{"$f":"'Ұпай бақылағыш'!C61&COUNTIF('Ұпай бақылағыш'!$C$4:C61,'Ұпай бақылағыш'!C61)","v":"0"}]
[null,59,{"$f":"'Ұпай бақылағыш'!C62&COUNTIF('Ұпай бақылағыш'!$C$4:C62,'Ұпай бақылағыш'!C62)","v":"0"}]
[null,60,{"$f":"'Ұпай бақылағыш'!C63&COUNTIF('Ұпай бақылағыш'!$C$4:C63,'Ұпай бақылағыш'!C63)","v":"0"}]
[null,61,{"$f":"'Ұпай бақылағыш'!C64&COUNTIF('Ұпай бақылағыш'!$C$4:C64,'Ұпай бақылағыш'!C64)","v":"0"}]
[null,62,{"$f":"'Ұпай бақылағыш'!C65&COUNTIF('Ұпай бақылағыш'!$C$4:C65,'Ұпай бақылағыш'!C65)","v":"0"}]
[null,63,{"$f":"'Ұпай бақылағыш'!C66&COUNTIF('Ұпай бақылағыш'!$C$4:C66,'Ұпай бақылағыш'!C66)","v":"0"}]
[null,64,{"$f":"'Ұпай бақылағыш'!C67&COUNTIF('Ұпай бақылағыш'!$C$4:C67,'Ұпай бақылағыш'!C67)","v":"0"}]
[null,65,{"$f":"'Ұпай бақылағыш'!C68&COUNTIF('Ұпай бақылағыш'!$C$4:C68,'Ұпай бақылағыш'!C68)","v":"0"}]
[null,66,{"$f":"'Ұпай бақылағыш'!C69&COUNTIF('Ұпай бақылағыш'!$C$4:C69,'Ұпай бақылағыш'!C69)","v":"0"}]
[null,67,{"$f":"'Ұпай бақылағыш'!C70&COUNTIF('Ұпай бақылағыш'!$C$4:C70,'Ұпай бақылағыш'!C70)","v":"0"}]
[null,68,{"$f":"'Ұпай бақылағыш'!C71&COUNTIF('Ұпай бақылағыш'!$C$4:C71,'Ұпай бақылағыш'!C71)","v":"0"}]
[null,69,{"$f":"'Ұпай бақылағыш'!C72&COUNTIF('Ұпай бақылағыш'!$C$4:C72,'Ұпай бақылағыш'!C72)","v":"0"}]
[null,70,{"$f":"'Ұпай бақылағыш'!C73&COUNTIF('Ұпай бақылағыш'!$C$4:C73,'Ұпай бақылағыш'!C73)","v":"0"}]
[null,71,{"$f":"'Ұпай бақылағыш'!C74&COUNTIF('Ұпай бақылағыш'!$C$4:C74,'Ұпай бақылағыш'!C74)","v":"0"}]
[null,72,{"$f":"'Ұпай бақылағыш'!C75&COUNTIF('Ұпай бақылағыш'!$C$4:C75,'Ұпай бақылағыш'!C75)","v":"0"}]
[null,73,{"$f":"'Ұпай бақылағыш'!C76&COUNTIF('Ұпай бақылағыш'!$C$4:C76,'Ұпай бақылағыш'!C76)","v":"0"}]
[null,74,{"$f":"'Ұпай бақылағыш'!C77&COUNTIF('Ұпай бақылағыш'!$C$4:C77,'Ұпай бақылағыш'!C77)","v":"0"}]
[null,75,{"$f":"'Ұпай бақылағыш'!C78&COUNTIF('Ұпай бақылағыш'!$C$4:C78,'Ұпай бақылағыш'!C78)","v":"0"}]
[null,76,{"$f":"'Ұпай бақылағыш'!C79&COUNTIF('Ұпай бақылағыш'!$C$4:C79,'Ұпай бақылағыш'!C79)","v":"0"}]
[null,77,{"$f":"'Ұпай бақылағыш'!C80&COUNTIF('Ұпай бақылағыш'!$C$4:C80,'Ұпай бақылағыш'!C80)","v":"0"}]
[null,78,{"$f":"'Ұпай бақылағыш'!C81&COUNTIF('Ұпай бақылағыш'!$C$4:C81,'Ұпай бақылағыш'!C81)","v":"0"}]
[null,79,{"$f":"'Ұпай бақылағыш'!C82&COUNTIF('Ұпай бақылағыш'!$C$4:C82,'Ұпай бақылағыш'!C82)","v":"0"}]
[null,80,{"$f":"'Ұпай бақылағыш'!C83&COUNTIF('Ұпай бақылағыш'!$C$4:C83,'Ұпай бақылағыш'!C83)","v":"0"}]
[null,81,{"$f":"'Ұпай бақылағыш'!C84&COUNTIF('Ұпай бақылағыш'!$C$4:C84,'Ұпай бақылағыш'!C84)","v":"0"}]
[null,82,{"$f":"'Ұпай бақылағыш'!C85&COUNTIF('Ұпай бақылағыш'!$C$4:C85,'Ұпай бақылағыш'!C85)","v":"0"}]
[null,83,{"$f":"'Ұпай бақылағыш'!C86&COUNTIF('Ұпай бақылағыш'!$C$4:C86,'Ұпай бақылағыш'!C86)","v":"0"}]
[null,84,{"$f":"'Ұпай бақылағыш'!C87&COUNTIF('Ұпай бақылағыш'!$C$4:C87,'Ұпай бақылағыш'!C87)","v":"0"}]
[null,85,{"$f":"'Ұпай бақылағыш'!C88&COUNTIF('Ұпай бақылағыш'!$C$4:C88,'Ұпай бақылағыш'!C88)","v":"0"}]
[null,86,{"$f":"'Ұпай бақылағыш'!C89&COUNTIF('Ұпай бақылағыш'!$C$4:C89,'Ұпай бақылағыш'!C89)","v":"0"}]
[null,87,{"$f":"'Ұпай бақылағыш'!C90&COUNTIF('Ұпай бақылағыш'!$C$4:C90,'Ұпай бақылағыш'!C90)","v":"0"}]
[null,88,{"$f":"'Ұпай бақылағыш'!C91&COUNTIF('Ұпай бақылағыш'!$C$4:C91,'Ұпай бақылағыш'!C91)","v":"0"}]
[null,89,{"$f":"'Ұпай бақылағыш'!C92&COUNTIF('Ұпай бақылағыш'!$C$4:C92,'Ұпай бақылағыш'!C92)","v":"0"}]
[null,90,{"$f":"'Ұпай бақылағыш'!C93&COUNTIF('Ұпай бақылағыш'!$C$4:C93,'Ұпай бақылағыш'!C93)","v":"0"}]
[null,91,{"$f":"'Ұпай бақылағыш'!C94&COUNTIF('Ұпай бақылағыш'!$C$4:C94,'Ұпай бақылағыш'!C94)","v":"0"}]
[null,92,{"$f":"'Ұпай бақылағыш'!C95&COUNTIF('Ұпай бақылағыш'!$C$4:C95,'Ұпай бақылағыш'!C95)","v":"0"}]
[null,93,{"$f":"'Ұпай бақылағыш'!C96&COUNTIF('Ұпай бақылағыш'!$C$4:C96,'Ұпай бақылағыш'!C96)","v":"0"}]
[null,94,{"$f":"'Ұпай бақылағыш'!C97&COUNTIF('Ұпай бақылағыш'!$C$4:C97,'Ұпай бақылағыш'!C97)","v":"0"}]
[null,95,{"$f":"'Ұпай бақылағыш'!C98&COUNTIF('Ұпай бақылағыш'!$C$4:C98,'Ұпай бақылағыш'!C98)","v":"0"}]
[null,96,{"$f":"'Ұпай бақылағыш'!C99&COUNTIF('Ұпай бақылағыш'!$C$4:C99,'Ұпай бақылағыш'!C99)","v":"0"}]
[null,97,{"$f":"'Ұпай бақылағыш'!C100&COUNTIF('Ұпай бақылағыш'!$C$4:C100,'Ұпай бақылағыш'!C100)","v":"0"}]
[null,98,{"$f":"'Ұпай бақылағыш'!C101&COUNTIF('Ұпай бақылағыш'!$C$4:C101,'Ұпай бақылағыш'!C101)","v":"0"}]
[null,99,{"$f":"'Ұпай бақылағыш'!C102&COUNTIF('Ұпай бақылағыш'!$C$4:C102,'Ұпай бақылағыш'!C102)","v":"0"}]
[null,100,{"$f":"'Ұпай бақылағыш'!C103&COUNTIF('Ұпай бақылағыш'!$C$4:C103,'Ұпай бақылағыш'!C103)","v":"0"}]
[null,101,{"$f":"'Ұпай бақылағыш'!C104&COUNTIF('Ұпай бақылағыш'!$C$4:C104,'Ұпай бақылағыш'!C104)","v":"0"}]
[null,102,{"$f":"'Ұпай бақылағыш'!C105&COUNTIF('Ұпай бақылағыш'!$C$4:C105,'Ұпай бақылағыш'!C105)","v":"0"}]
[null,103,{"$f":"'Ұпай бақылағыш'!C106&COUNTIF('Ұпай бақылағыш'!$C$4:C106,'Ұпай бақылағыш'!C106)","v":"0"}]
[null,104,{"$f":"'Ұпай бақылағыш'!C107&COUNTIF('Ұпай бақылағыш'!$C$4:C107,'Ұпай бақылағыш'!C107)","v":"0"}]
[null,105,{"$f":"'Ұпай бақылағыш'!C108&COUNTIF('Ұпай бақылағыш'!$C$4:C108,'Ұпай бақылағыш'!C108)","v":"0"}]
[null,106,{"$f":"'Ұпай бақылағыш'!C109&COUNTIF('Ұпай бақылағыш'!$C$4:C109,'Ұпай бақылағыш'!C109)","v":"0"}]
[null,107,{"$f":"'Ұпай бақылағыш'!C110&COUNTIF('Ұпай бақылағыш'!$C$4:C110,'Ұпай бақылағыш'!C110)","v":"0"}]
[null,108,{"$f":"'Ұпай бақылағыш'!C111&COUNTIF('Ұпай бақылағыш'!$C$4:C111,'Ұпай бақылағыш'!C111)","v":"0"}]
[null,109,{"$f":"'Ұпай бақылағыш'!C112&COUNTIF('Ұпай бақылағыш'!$C$4:C112,'Ұпай бақылағыш'!C112)","v":"0"}]
[null,110,{"$f":"'Ұпай бақылағыш'!C113&COUNTIF('Ұпай бақылағыш'!$C$4:C113,'Ұпай бақылағыш'!C113)","v":"0"}]
[null,111,{"$f":"'Ұпай бақылағыш'!C114&COUNTIF('Ұпай бақылағыш'!$C$4:C114,'Ұпай бақылағыш'!C114)","v":"0"}]
[null,112,{"$f":"'Ұпай бақылағыш'!C115&COUNTIF('Ұпай бақылағыш'!$C$4:C115,'Ұпай бақылағыш'!C115)","v":"0"}]
[null,113,{"$f":"'Ұпай бақылағыш'!C116&COUNTIF('Ұпай бақылағыш'!$C$4:C116,'Ұпай бақылағыш'!C116)","v":"0"}]
[null,114,{"$f":"'Ұпай бақылағыш'!C117&COUNTIF('Ұпай бақылағыш'!$C$4:C117,'Ұпай бақылағыш'!C117)","v":"0"}]
[null,115,{"$f":"'Ұпай бақылағыш'!C118&COUNTIF('Ұпай бақылағыш'!$C$4:C118,'Ұпай бақылағыш'!C118)","v":"0"}]
[null,116,{"$f":"'Ұпай бақылағыш'!C119&COUNTIF('Ұпай бақылағыш'!$C$4:C119,'Ұпай бақылағыш'!C119)","v":"0"}]
[null,117,{"$f":"'Ұпай бақылағыш'!C120&COUNTIF('Ұпай бақылағыш'!$C$4:C120,'Ұпай бақылағыш'!C120)","v":"0"}]
[null,118,{"$f":"'Ұпай бақылағыш'!C121&COUNTIF('Ұпай бақылағыш'!$C$4:C121,'Ұпай бақылағыш'!C121)","v":"0"}]
[null,119,{"$f":"'Ұпай бақылағыш'!C122&COUNTIF('Ұпай бақылағыш'!$C$4:C122,'Ұпай бақылағыш'!C122)","v":"0"}]
[null,120,{"$f":"'Ұпай бақылағыш'!C123&COUNTIF('Ұпай бақылағыш'!$C$4:C123,'Ұпай бақылағыш'!C123)","v":"0"}]
[null,121,{"$f":"'Ұпай бақылағыш'!C124&COUNTIF('Ұпай бақылағыш'!$C$4:C124,'Ұпай бақылағыш'!C124)","v":"0"}]
[null,122,{"$f":"'Ұпай бақылағыш'!C125&COUNTIF('Ұпай бақылағыш'!$C$4:C125,'Ұпай бақылағыш'!C125)","v":"0"}]
[null,123,{"$f":"'Ұпай бақылағыш'!C126&COUNTIF('Ұпай бақылағыш'!$C$4:C126,'Ұпай бақылағыш'!C126)","v":"0"}]
[null,124,{"$f":"'Ұпай бақылағыш'!C127&COUNTIF('Ұпай бақылағыш'!$C$4:C127,'Ұпай бақылағыш'!C127)","v":"0"}]
[null,125,{"$f":"'Ұпай бақылағыш'!C128&COUNTIF('Ұпай бақылағыш'!$C$4:C128,'Ұпай бақылағыш'!C128)","v":"0"}]
[null,126,{"$f":"'Ұпай бақылағыш'!C129&COUNTIF('Ұпай бақылағыш'!$C$4:C129,'Ұпай бақылағыш'!C129)","v":"0"}]
[null,127,{"$f":"'Ұпай бақылағыш'!C130&COUNTIF('Ұпай бақылағыш'!$C$4:C130,'Ұпай бақылағыш'!C130)","v":"0"}]
[null,128,{"$f":"'Ұпай бақылағыш'!C131&COUNTIF('Ұпай бақылағыш'!$C$4:C131,'Ұпай бақылағыш'!C131)","v":"0"}]
[null,129,{"$f":"'Ұпай бақылағыш'!C132&COUNTIF('Ұпай бақылағыш'!$C$4:C132,'Ұпай бақылағыш'!C132)","v":"0"}]
[null,130,{"$f":"'Ұпай бақылағыш'!C133&COUNTIF('Ұпай бақылағыш'!$C$4:C133,'Ұпай бақылағыш'!C133)","v":"0"}]
[null,131,{"$f":"'Ұпай бақылағыш'!C134&COUNTIF('Ұпай бақылағыш'!$C$4:C134,'Ұпай бақылағыш'!C134)","v":"0"}]
[null,132,{"$f":"'Ұпай бақылағыш'!C135&COUNTIF('Ұпай бақылағыш'!$C$4:C135,'Ұпай бақылағыш'!C135)","v":"0"}]
[null,133,{"$f":"'Ұпай бақылағыш'!C136&COUNTIF('Ұпай бақылағыш'!$C$4:C136,'Ұпай бақылағыш'!C136)","v":"0"}]
[null,134,{"$f":"'Ұпай бақылағыш'!C137&COUNTIF('Ұпай бақылағыш'!$C$4:C137,'Ұпай бақылағыш'!C137)","v":"0"}]
[null,135,{"$f":"'Ұпай бақылағыш'!C138&COUNTIF('Ұпай бақылағыш'!$C$4:C138,'Ұпай бақылағыш'!C138)","v":"0"}]
[null,136,{"$f":"'Ұпай бақылағыш'!C139&COUNTIF('Ұпай бақылағыш'!$C$4:C139,'Ұпай бақылағыш'!C139)","v":"0"}]
[null,137,{"$f":"'Ұпай бақылағыш'!C140&COUNTIF('Ұпай бақылағыш'!$C$4:C140,'Ұпай бақылағыш'!C140)","v":"0"}]
[null,138,{"$f":"'Ұпай бақылағыш'!C141&COUNTIF('Ұпай бақылағыш'!$C$4:C141,'Ұпай бақылағыш'!C141)","v":"0"}]
[null,139,{"$f":"'Ұпай бақылағыш'!C142&COUNTIF('Ұпай бақылағыш'!$C$4:C142,'Ұпай бақылағыш'!C142)","v":"0"}]
[null,140,{"$f":"'Ұпай бақылағыш'!C143&COUNTIF('Ұпай бақылағыш'!$C$4:C143,'Ұпай бақылағыш'!C143)","v":"0"}]
[null,141,{"$f":"'Ұпай бақылағыш'!C144&COUNTIF('Ұпай бақылағыш'!$C$4:C144,'Ұпай бақылағыш'!C144)","v":"0"}]
[null,142,{"$f":"'Ұпай бақылағыш'!C145&COUNTIF('Ұпай бақылағыш'!$C$4:C145,'Ұпай бақылағыш'!C145)","v":"0"}]
[null,143,{"$f":"'Ұпай бақылағыш'!C146&COUNTIF('Ұпай бақылағыш'!$C$4:C146,'Ұпай бақылағыш'!C146)","v":"0"}]
[null,144,{"$f":"'Ұпай бақылағыш'!C147&COUNTIF('Ұпай бақылағыш'!$C$4:C147,'Ұпай бақылағыш'!C147)","v":"0"}]
[null,145,{"$f":"'Ұпай бақылағыш'!C148&COUNTIF('Ұпай бақылағыш'!$C$4:C148,'Ұпай бақылағыш'!C148)","v":"0"}]
[null,146,{"$f":"'Ұпай бақылағыш'!C149&COUNTIF('Ұпай бақылағыш'!$C$4:C149,'Ұпай бақылағыш'!C149)","v":"0"}]
[null,147,{"$f":"'Ұпай бақылағыш'!C150&COUNTIF('Ұпай бақылағыш'!$C$4:C150,'Ұпай бақылағыш'!C150)","v":"0"}]
[null,148,{"$f":"'Ұпай бақылағыш'!C151&COUNTIF('Ұпай бақылағыш'!$C$4:C151,'Ұпай бақылағыш'!C151)","v":"0"}]
[null,149,{"$f":"'Ұпай бақылағыш'!C152&COUNTIF('Ұпай бақылағыш'!$C$4:C152,'Ұпай бақылағыш'!C152)","v":"0"}]
[null,150,{"$f":"'Ұпай бақылағыш'!C153&COUNTIF('Ұпай бақылағыш'!$C$4:C153,'Ұпай бақылағыш'!C153)","v":"0"}]
[null,151,{"$f":"'Ұпай бақылағыш'!C154&COUNTIF('Ұпай бақылағыш'!$C$4:C154,'Ұпай бақылағыш'!C154)","v":"0"}]
[null,152,{"$f":"'Ұпай бақылағыш'!C155&COUNTIF('Ұпай бақылағыш'!$C$4:C155,'Ұпай бақылағыш'!C155)","v":"0"}]
[null,153,{"$f":"'Ұпай бақылағыш'!C156&COUNTIF('Ұпай бақылағыш'!$C$4:C156,'Ұпай бақылағыш'!C156)","v":"0"}]
[null,154,{"$f":"'Ұпай бақылағыш'!C157&COUNTIF('Ұпай бақылағыш'!$C$4:C157,'Ұпай бақылағыш'!C157)","v":"0"}]
[null,155,{"$f":"'Ұпай бақылағыш'!C158&COUNTIF('Ұпай бақылағыш'!$C$4:C158,'Ұпай бақылағыш'!C158)","v":"0"}]
[null,156,{"$f":"'Ұпай бақылағыш'!C159&COUNTIF('Ұпай бақылағыш'!$C$4:C159,'Ұпай бақылағыш'!C159)","v":"0"}]
[null,157,{"$f":"'Ұпай бақылағыш'!C160&COUNTIF('Ұпай бақылағыш'!$C$4:C160,'Ұпай бақылағыш'!C160)","v":"0"}]
[null,158,{"$f":"'Ұпай бақылағыш'!C161&COUNTIF('Ұпай бақылағыш'!$C$4:C161,'Ұпай бақылағыш'!C161)","v":"0"}]
[null,159,{"$f":"'Ұпай бақылағыш'!C162&COUNTIF('Ұпай бақылағыш'!$C$4:C162,'Ұпай бақылағыш'!C162)","v":"0"}]
[null,160,{"$f":"'Ұпай бақылағыш'!C163&COUNTIF('Ұпай бақылағыш'!$C$4:C163,'Ұпай бақылағыш'!C163)","v":"0"}]
[null,161,{"$f":"'Ұпай бақылағыш'!C164&COUNTIF('Ұпай бақылағыш'!$C$4:C164,'Ұпай бақылағыш'!C164)","v":"0"}]
[null,162,{"$f":"'Ұпай бақылағыш'!C165&COUNTIF('Ұпай бақылағыш'!$C$4:C165,'Ұпай бақылағыш'!C165)","v":"0"}]
[null,163,{"$f":"'Ұпай бақылағыш'!C166&COUNTIF('Ұпай бақылағыш'!$C$4:C166,'Ұпай бақылағыш'!C166)","v":"0"}]
[null,164,{"$f":"'Ұпай бақылағыш'!C167&COUNTIF('Ұпай бақылағыш'!$C$4:C167,'Ұпай бақылағыш'!C167)","v":"0"}]
[null,165,{"$f":"'Ұпай бақылағыш'!C168&COUNTIF('Ұпай бақылағыш'!$C$4:C168,'Ұпай бақылағыш'!C168)","v":"0"}]
[null,166,{"$f":"'Ұпай бақылағыш'!C169&COUNTIF('Ұпай бақылағыш'!$C$4:C169,'Ұпай бақылағыш'!C169)","v":"0"}]
[null,167,{"$f":"'Ұпай бақылағыш'!C170&COUNTIF('Ұпай бақылағыш'!$C$4:C170,'Ұпай бақылағыш'!C170)","v":"0"}]
[null,168,{"$f":"'Ұпай бақылағыш'!C171&COUNTIF('Ұпай бақылағыш'!$C$4:C171,'Ұпай бақылағыш'!C171)","v":"0"}]
[null,169,{"$f":"'Ұпай бақылағыш'!C172&COUNTIF('Ұпай бақылағыш'!$C$4:C172,'Ұпай бақылағыш'!C172)","v":"0"}]
[null,170,{"$f":"'Ұпай бақылағыш'!C173&COUNTIF('Ұпай бақылағыш'!$C$4:C173,'Ұпай бақылағыш'!C173)","v":"0"}]
[null,171,{"$f":"'Ұпай бақылағыш'!C174&COUNTIF('Ұпай бақылағыш'!$C$4:C174,'Ұпай бақылағыш'!C174)","v":"0"}]
[null,172,{"$f":"'Ұпай бақылағыш'!C175&COUNTIF('Ұпай бақылағыш'!$C$4:C175,'Ұпай бақылағыш'!C175)","v":"0"}]
[null,173,{"$f":"'Ұпай бақылағыш'!C176&COUNTIF('Ұпай бақылағыш'!$C$4:C176,'Ұпай бақылағыш'!C176)","v":"0"}]
[null,174,{"$f":"'Ұпай бақылағыш'!C177&COUNTIF('Ұпай бақылағыш'!$C$4:C177,'Ұпай бақылағыш'!C177)","v":"0"}]
[null,175,{"$f":"'Ұпай бақылағыш'!C178&COUNTIF('Ұпай бақылағыш'!$C$4:C178,'Ұпай бақылағыш'!C178)","v":"0"}]
[null,176,{"$f":"'Ұпай бақылағыш'!C179&COUNTIF('Ұпай бақылағыш'!$C$4:C179,'Ұпай бақылағыш'!C179)","v":"0"}]
[null,177,{"$f":"'Ұпай бақылағыш'!C180&COUNTIF('Ұпай бақылағыш'!$C$4:C180,'Ұпай бақылағыш'!C180)","v":"0"}]
[null,178,{"$f":"'Ұпай бақылағыш'!C181&COUNTIF('Ұпай бақылағыш'!$C$4:C181,'Ұпай бақылағыш'!C181)","v":"0"}]
[null,179,{"$f":"'Ұпай бақылағыш'!C182&COUNTIF('Ұпай бақылағыш'!$C$4:C182,'Ұпай бақылағыш'!C182)","v":"0"}]
[null,180,{"$f":"'Ұпай бақылағыш'!C183&COUNTIF('Ұпай бақылағыш'!$C$4:C183,'Ұпай бақылағыш'!C183)","v":"0"}]
[null,181,{"$f":"'Ұпай бақылағыш'!C184&COUNTIF('Ұпай бақылағыш'!$C$4:C184,'Ұпай бақылағыш'!C184)","v":"0"}]
[null,182,{"$f":"'Ұпай бақылағыш'!C185&COUNTIF('Ұпай бақылағыш'!$C$4:C185,'Ұпай бақылағыш'!C185)","v":"0"}]
[null,183,{"$f":"'Ұпай бақылағыш'!C186&COUNTIF('Ұпай бақылағыш'!$C$4:C186,'Ұпай бақылағыш'!C186)","v":"0"}]
[null,184,{"$f":"'Ұпай бақылағыш'!C187&COUNTIF('Ұпай бақылағыш'!$C$4:C187,'Ұпай бақылағыш'!C187)","v":"0"}]
[null,185,{"$f":"'Ұпай бақылағыш'!C188&COUNTIF('Ұпай бақылағыш'!$C$4:C188,'Ұпай бақылағыш'!C188)","v":"0"}]
[null,186,{"$f":"'Ұпай бақылағыш'!C189&COUNTIF('Ұпай бақылағыш'!$C$4:C189,'Ұпай бақылағыш'!C189)","v":"0"}]
[null,187,{"$f":"'Ұпай бақылағыш'!C190&COUNTIF('Ұпай бақылағыш'!$C$4:C190,'Ұпай бақылағыш'!C190)","v":"0"}]
[null,188,{"$f":"'Ұпай бақылағыш'!C191&COUNTIF('Ұпай бақылағыш'!$C$4:C191,'Ұпай бақылағыш'!C191)","v":"0"}]
[null,189,{"$f":"'Ұпай бақылағыш'!C192&COUNTIF('Ұпай бақылағыш'!$C$4:C192,'Ұпай бақылағыш'!C192)","v":"0"}]
[null,190,{"$f":"'Ұпай бақылағыш'!C193&COUNTIF('Ұпай бақылағыш'!$C$4:C193,'Ұпай бақылағыш'!C193)","v":"0"}]
[null,191,{"$f":"'Ұпай бақылағыш'!C194&COUNTIF('Ұпай бақылағыш'!$C$4:C194,'Ұпай бақылағыш'!C194)","v":"0"}]
[null,192,{"$f":"'Ұпай бақылағыш'!C195&COUNTIF('Ұпай бақылағыш'!$C$4:C195,'Ұпай бақылағыш'!C195)","v":"0"}]
[null,193,{"$f":"'Ұпай бақылағыш'!C196&COUNTIF('Ұпай бақылағыш'!$C$4:C196,'Ұпай бақылағыш'!C196)","v":"0"}]
[null,194,{"$f":"'Ұпай бақылағыш'!C197&COUNTIF('Ұпай бақылағыш'!$C$4:C197,'Ұпай бақылағыш'!C197)","v":"0"}]
[null,195,{"$f":"'Ұпай бақылағыш'!C198&COUNTIF('Ұпай бақылағыш'!$C$4:C198,'Ұпай бақылағыш'!C198)","v":"0"}]
[null,196,{"$f":"'Ұпай бақылағыш'!C199&COUNTIF('Ұпай бақылағыш'!$C$4:C199,'Ұпай бақылағыш'!C199)","v":"0"}]
[null,197,{"$f":"'Ұпай бақылағыш'!C200&COUNTIF('Ұпай бақылағыш'!$C$4:C200,'Ұпай бақылағыш'!C200)","v":"0"}]
[null,198,{"$f":"'Ұпай бақылағыш'!C201&COUNTIF('Ұпай бақылағыш'!$C$4:C201,'Ұпай бақылағыш'!C201)","v":"0"}]
[null,199,{"$f":"'Ұпай бақылағыш'!C202&COUNTIF('Ұпай бақылағыш'!$C$4:C202,'Ұпай бақылағыш'!C202)","v":"0"}]
[null,200,{"$f":"'Ұпай бақылағыш'!C203&COUNTIF('Ұпай бақылағыш'!$C$4:C203,'Ұпай бақылағыш'!C203)","v":"0"}]
[null,201,{"$f":"'Ұпай бақылағыш'!C204&COUNTIF('Ұпай бақылағыш'!$C$4:C204,'Ұпай бақылағыш'!C204)","v":"0"}]
[null,202,{"$f":"'Ұпай бақылағыш'!C205&COUNTIF('Ұпай бақылағыш'!$C$4:C205,'Ұпай бақылағыш'!C205)","v":"0"}]
[null,203,{"$f":"'Ұпай бақылағыш'!C206&COUNTIF('Ұпай бақылағыш'!$C$4:C206,'Ұпай бақылағыш'!C206)","v":"0"}]
[null,204,{"$f":"'Ұпай бақылағыш'!C207&COUNTIF('Ұпай бақылағыш'!$C$4:C207,'Ұпай бақылағыш'!C207)","v":"0"}]
[null,205,{"$f":"'Ұпай бақылағыш'!C208&COUNTIF('Ұпай бақылағыш'!$C$4:C208,'Ұпай бақылағыш'!C208)","v":"0"}]
[null,206,{"$f":"'Ұпай бақылағыш'!C209&COUNTIF('Ұпай бақылағыш'!$C$4:C209,'Ұпай бақылағыш'!C209)","v":"0"}]
[null,207,{"$f":"'Ұпай бақылағыш'!C210&COUNTIF('Ұпай бақылағыш'!$C$4:C210,'Ұпай бақылағыш'!C210)","v":"0"}]
[null,208,{"$f":"'Ұпай бақылағыш'!C211&COUNTIF('Ұпай бақылағыш'!$C$4:C211,'Ұпай бақылағыш'!C211)","v":"0"}]
[null,209,{"$f":"'Ұпай бақылағыш'!C212&COUNTIF('Ұпай бақылағыш'!$C$4:C212,'Ұпай бақылағыш'!C212)","v":"0"}]
[null,210,{"$f":"'Ұпай бақылағыш'!C213&COUNTIF('Ұпай бақылағыш'!$C$4:C213,'Ұпай бақылағыш'!C213)","v":"0"}]
[null,211,{"$f":"'Ұпай бақылағыш'!C214&COUNTIF('Ұпай бақылағыш'!$C$4:C214,'Ұпай бақылағыш'!C214)","v":"0"}]
[null,212,{"$f":"'Ұпай бақылағыш'!C215&COUNTIF('Ұпай бақылағыш'!$C$4:C215,'Ұпай бақылағыш'!C215)","v":"0"}]
[null,213,{"$f":"'Ұпай бақылағыш'!C216&COUNTIF('Ұпай бақылағыш'!$C$4:C216,'Ұпай бақылағыш'!C216)","v":"0"}]
[null,214,{"$f":"'Ұпай бақылағыш'!C217&COUNTIF('Ұпай бақылағыш'!$C$4:C217,'Ұпай бақылағыш'!C217)","v":"0"}]
[null,215,{"$f":"'Ұпай бақылағыш'!C218&COUNTIF('Ұпай бақылағыш'!$C$4:C218,'Ұпай бақылағыш'!C218)","v":"0"}]
[null,216,{"$f":"'Ұпай бақылағыш'!C219&COUNTIF('Ұпай бақылағыш'!$C$4:C219,'Ұпай бақылағыш'!C219)","v":"0"}]
[null,217,{"$f":"'Ұпай бақылағыш'!C220&COUNTIF('Ұпай бақылағыш'!$C$4:C220,'Ұпай бақылағыш'!C220)","v":"0"}]
[null,218,{"$f":"'Ұпай бақылағыш'!C221&COUNTIF('Ұпай бақылағыш'!$C$4:C221,'Ұпай бақылағыш'!C221)","v":"0"}]
[null,219,{"$f":"'Ұпай бақылағыш'!C222&COUNTIF('Ұпай бақылағыш'!$C$4:C222,'Ұпай бақылағыш'!C222)","v":"0"}]
[null,220,{"$f":"'Ұпай бақылағыш'!C223&COUNTIF('Ұпай бақылағыш'!$C$4:C223,'Ұпай бақылағыш'!C223)","v":"0"}]
[null,221,{"$f":"'Ұпай бақылағыш'!C224&COUNTIF('Ұпай бақылағыш'!$C$4:C224,'Ұпай бақылағыш'!C224)","v":"0"}]
[null,222,{"$f":"'Ұпай бақылағыш'!C225&COUNTIF('Ұпай бақылағыш'!$C$4:C225,'Ұпай бақылағыш'!C225)","v":"0"}]
[null,223,{"$f":"'Ұпай бақылағыш'!C226&COUNTIF('Ұпай бақылағыш'!$C$4:C226,'Ұпай бақылағыш'!C226)","v":"0"}]
[null,224,{"$f":"'Ұпай бақылағыш'!C227&COUNTIF('Ұпай бақылағыш'!$C$4:C227,'Ұпай бақылағыш'!C227)","v":"0"}]
[null,225,{"$f":"'Ұпай бақылағыш'!C228&COUNTIF('Ұпай бақылағыш'!$C$4:C228,'Ұпай бақылағыш'!C228)","v":"0"}]
[null,226,{"$f":"'Ұпай бақылағыш'!C229&COUNTIF('Ұпай бақылағыш'!$C$4:C229,'Ұпай бақылағыш'!C229)","v":"0"}]
[null,227,{"$f":"'Ұпай бақылағыш'!C230&COUNTIF('Ұпай бақылағыш'!$C$4:C230,'Ұпай бақылағыш'!C230)","v":"0"}]
[null,228,{"$f":"'Ұпай бақылағыш'!C231&COUNTIF('Ұпай бақылағыш'!$C$4:C231,'Ұпай бақылағыш'!C231)","v":"0"}]
[null,229,{"$f":"'Ұпай бақылағыш'!C232&COUNTIF('Ұпай бақылағыш'!$C$4:C232,'Ұпай бақылағыш'!C232)","v":"0"}]
[null,230,{"$f":"'Ұпай бақылағыш'!C233&COUNTIF('Ұпай бақылағыш'!$C$4:C233,'Ұпай бақылағыш'!C233)","v":"0"}]
[null,231,{"$f":"'Ұпай бақылағыш'!C234&COUNTIF('Ұпай бақылағыш'!$C$4:C234,'Ұпай бақылағыш'!C234)","v":"0"}]
[null,232,{"$f":"'Ұпай бақылағыш'!C235&COUNTIF('Ұпай бақылағыш'!$C$4:C235,'Ұпай бақылағыш'!C235)","v":"0"}]
[null,233,{"$f":"'Ұпай бақылағыш'!C236&COUNTIF('Ұпай бақылағыш'!$C$4:C236,'Ұпай бақылағыш'!C236)","v":"0"}]
[null,234,{"$f":"'Ұпай бақылағыш'!C237&COUNTIF('Ұпай бақылағыш'!$C$4:C237,'Ұпай бақылағыш'!C237)","v":"0"}]
[null,235,{"$f":"'Ұпай бақылағыш'!C238&COUNTIF('Ұпай бақылағыш'!$C$4:C238,'Ұпай бақылағыш'!C238)","v":"0"}]
[null,236,{"$f":"'Ұпай бақылағыш'!C239&COUNTIF('Ұпай бақылағыш'!$C$4:C239,'Ұпай бақылағыш'!C239)","v":"0"}]
[null,237,{"$f":"'Ұпай бақылағыш'!C240&COUNTIF('Ұпай бақылағыш'!$C$4:C240,'Ұпай бақылағыш'!C240)","v":"0"}]
[null,238,{"$f":"'Ұпай бақылағыш'!C241&COUNTIF('Ұпай бақылағыш'!$C$4:C241,'Ұпай бақылағыш'!C241)","v":"0"}]
[null,239,{"$f":"'Ұпай бақылағыш'!C242&COUNTIF('Ұпай бақылағыш'!$C$4:C242,'Ұпай бақылағыш'!C242)","v":"0"}]
[null,240,{"$f":"'Ұпай бақылағыш'!C243&COUNTIF('Ұпай бақылағыш'!$C$4:C243,'Ұпай бақылағыш'!C243)","v":"0"}]
[null,241,{"$f":"'Ұпай бақылағыш'!C244&COUNTIF('Ұпай бақылағыш'!$C$4:C244,'Ұпай бақылағыш'!C244)","v":"0"}]
[null,242,{"$f":"'Ұпай бақылағыш'!C245&COUNTIF('Ұпай бақылағыш'!$C$4:C245,'Ұпай бақылағыш'!C245)","v":"0"}]
[null,243,{"$f":"'Ұпай бақылағыш'!C246&COUNTIF('Ұпай бақылағыш'!$C$4:C246,'Ұпай бақылағыш'!C246)","v":"0"}]
[null,244,{"$f":"'Ұпай бақылағыш'!C247&COUNTIF('Ұпай бақылағыш'!$C$4:C247,'Ұпай бақылағыш'!C247)","v":"0"}]
[null,245,{"$f":"'Ұпай бақылағыш'!C248&COUNTIF('Ұпай бақылағыш'!$C$4:C248,'Ұпай бақылағыш'!C248)","v":"0"}]
[null,246,{"$f":"'Ұпай бақылағыш'!C249&COUNTIF('Ұпай бақылағыш'!$C$4:C249,'Ұпай бақылағыш'!C249)","v":"0"}]
[null,247,{"$f":"'Ұпай бақылағыш'!C250&COUNTIF('Ұпай бақылағыш'!$C$4:C250,'Ұпай бақылағыш'!C250)","v":"0"}]
[null,248,{"$f":"'Ұпай бақылағыш'!C251&COUNTIF('Ұпай бақылағыш'!$C$4:C251,'Ұпай бақылағыш'!C251)","v":"0"}]
[null,249,{"$f":"'Ұпай бақылағыш'!C252&COUNTIF('Ұпай бақылағыш'!$C$4:C252,'Ұпай бақылағыш'!C252)","v":"0"}]
[null,250,{"$f":"'Ұпай бақылағыш'!C253&COUNTIF('Ұпай бақылағыш'!$C$4:C253,'Ұпай бақылағыш'!C253)","v":"0"}]
[null,251,{"$f":"'Ұпай бақылағыш'!C254&COUNTIF('Ұпай бақылағыш'!$C$4:C254,'Ұпай бақылағыш'!C254)","v":"0"}]
[null,252,{"$f":"'Ұпай бақылағыш'!C255&COUNTIF('Ұпай бақылағыш'!$C$4:C255,'Ұпай бақылағыш'!C255)","v":"0"}]
[null,253,{"$f":"'Ұпай бақылағыш'!C256&COUNTIF('Ұпай бақылағыш'!$C$4:C256,'Ұпай бақылағыш'!C256)","v":"0"}]
[null,254,{"$f":"'Ұпай бақылағыш'!C257&COUNTIF('Ұпай бақылағыш'!$C$4:C257,'Ұпай бақылағыш'!C257)","v":"0"}]
[null,255,{"$f":"'Ұпай бақылағыш'!C258&COUNTIF('Ұпай бақылағыш'!$C$4:C258,'Ұпай бақылағыш'!C258)","v":"0"}]
[null,256,{"$f":"'Ұпай бақылағыш'!C259&COUNTIF('Ұпай бақылағыш'!$C$4:C259,'Ұпай бақылағыш'!C259)","v":"0"}]
[null,257,{"$f":"'Ұпай бақылағыш'!C260&COUNTIF('Ұпай бақылағыш'!$C$4:C260,'Ұпай бақылағыш'!C260)","v":"0"}]
[null,258,{"$f":"'Ұпай бақылағыш'!C261&COUNTIF('Ұпай бақылағыш'!$C$4:C261,'Ұпай бақылағыш'!C261)","v":"0"}]
[null,259,{"$f":"'Ұпай бақылағыш'!C262&COUNTIF('Ұпай бақылағыш'!$C$4:C262,'Ұпай бақылағыш'!C262)","v":"0"}]
[null,260,{"$f":"'Ұпай бақылағыш'!C263&COUNTIF('Ұпай бақылағыш'!$C$4:C263,'Ұпай бақылағыш'!C263)","v":"0"}]
[null,261,{"$f":"'Ұпай бақылағыш'!C264&COUNTIF('Ұпай бақылағыш'!$C$4:C264,'Ұпай бақылағыш'!C264)","v":"0"}]
[null,262,{"$f":"'Ұпай бақылағыш'!C265&COUNTIF('Ұпай бақылағыш'!$C$4:C265,'Ұпай бақылағыш'!C265)","v":"0"}]
[null,263,{"$f":"'Ұпай бақылағыш'!C266&COUNTIF('Ұпай бақылағыш'!$C$4:C266,'Ұпай бақылағыш'!C266)","v":"0"}]
[null,264,{"$f":"'Ұпай бақылағыш'!C267&COUNTIF('Ұпай бақылағыш'!$C$4:C267,'Ұпай бақылағыш'!C267)","v":"0"}]
[null,265,{"$f":"'Ұпай бақылағыш'!C268&COUNTIF('Ұпай бақылағыш'!$C$4:C268,'Ұпай бақылағыш'!C268)","v":"0"}]
[null,266,{"$f":"'Ұпай бақылағыш'!C269&COUNTIF('Ұпай бақылағыш'!$C$4:C269,'Ұпай бақылағыш'!C269)","v":"0"}]
[null,267,{"$f":"'Ұпай бақылағыш'!C270&COUNTIF('Ұпай бақылағыш'!$C$4:C270,'Ұпай бақылағыш'!C270)","v":"0"}]
[null,268,{"$f":"'Ұпай бақылағыш'!C271&COUNTIF('Ұпай бақылағыш'!$C$4:C271,'Ұпай бақылағыш'!C271)","v":"0"}]
[null,269,{"$f":"'Ұпай бақылағыш'!C272&COUNTIF('Ұпай бақылағыш'!$C$4:C272,'Ұпай бақылағыш'!C272)","v":"0"}]
[null,270,{"$f":"'Ұпай бақылағыш'!C273&COUNTIF('Ұпай бақылағыш'!$C$4:C273,'Ұпай бақылағыш'!C273)","v":"0"}]
[null,271,{"$f":"'Ұпай бақылағыш'!C274&COUNTIF('Ұпай бақылағыш'!$C$4:C274,'Ұпай бақылағыш'!C274)","v":"0"}]
[null,272,{"$f":"'Ұпай бақылағыш'!C275&COUNTIF('Ұпай бақылағыш'!$C$4:C275,'Ұпай бақылағыш'!C275)","v":"0"}]
[null,273,{"$f":"'Ұпай бақылағыш'!C276&COUNTIF('Ұпай бақылағыш'!$C$4:C276,'Ұпай бақылағыш'!C276)","v":"0"}]
[null,274,{"$f":"'Ұпай бақылағыш'!C277&COUNTIF('Ұпай бақылағыш'!$C$4:C277,'Ұпай бақылағыш'!C277)","v":"0"}]
[null,275,{"$f":"'Ұпай бақылағыш'!C278&COUNTIF('Ұпай бақылағыш'!$C$4:C278,'Ұпай бақылағыш'!C278)","v":"0"}]
[null,276,{"$f":"'Ұпай бақылағыш'!C279&COUNTIF('Ұпай бақылағыш'!$C$4:C279,'Ұпай бақылағыш'!C279)","v":"0"}]
[null,277,{"$f":"'Ұпай бақылағыш'!C280&COUNTIF('Ұпай бақылағыш'!$C$4:C280,'Ұпай бақылағыш'!C280)","v":"0"}]
[null,278,{"$f":"'Ұпай бақылағыш'!C281&COUNTIF('Ұпай бақылағыш'!$C$4:C281,'Ұпай бақылағыш'!C281)","v":"0"}]
[null,279,{"$f":"'Ұпай бақылағыш'!C282&COUNTIF('Ұпай бақылағыш'!$C$4:C282,'Ұпай бақылағыш'!C282)","v":"0"}]
[null,280,{"$f":"'Ұпай бақылағыш'!C283&COUNTIF('Ұпай бақылағыш'!$C$4:C283,'Ұпай бақылағыш'!C283)","v":"0"}]
[null,281,{"$f":"'Ұпай бақылағыш'!C284&COUNTIF('Ұпай бақылағыш'!$C$4:C284,'Ұпай бақылағыш'!C284)","v":"0"}]
[null,282,{"$f":"'Ұпай бақылағыш'!C285&COUNTIF('Ұпай бақылағыш'!$C$4:C285,'Ұпай бақылағыш'!C285)","v":"0"}]
[null,283,{"$f":"'Ұпай бақылағыш'!C286&COUNTIF('Ұпай бақылағыш'!$C$4:C286,'Ұпай бақылағыш'!C286)","v":"0"}]
[null,284,{"$f":"'Ұпай бақылағыш'!C287&COUNTIF('Ұпай бақылағыш'!$C$4:C287,'Ұпай бақылағыш'!C287)","v":"0"}]
[null,285,{"$f":"'Ұпай бақылағыш'!C288&COUNTIF('Ұпай бақылағыш'!$C$4:C288,'Ұпай бақылағыш'!C288)","v":"0"}]
[null,286,{"$f":"'Ұпай бақылағыш'!C289&COUNTIF('Ұпай бақылағыш'!$C$4:C289,'Ұпай бақылағыш'!C289)","v":"0"}]
[null,287,{"$f":"'Ұпай бақылағыш'!C290&COUNTIF('Ұпай бақылағыш'!$C$4:C290,'Ұпай бақылағыш'!C290)","v":"0"}]
[null,288,{"$f":"'Ұпай бақылағыш'!C291&COUNTIF('Ұпай бақылағыш'!$C$4:C291,'Ұпай бақылағыш'!C291)","v":"0"}]
[null,289,{"$f":"'Ұпай бақылағыш'!C292&COUNTIF('Ұпай бақылағыш'!$C$4:C292,'Ұпай бақылағыш'!C292)","v":"0"}]
[null,290,{"$f":"'Ұпай бақылағыш'!C293&COUNTIF('Ұпай бақылағыш'!$C$4:C293,'Ұпай бақылағыш'!C293)","v":"0"}]
[null,291,{"$f":"'Ұпай бақылағыш'!C294&COUNTIF('Ұпай бақылағыш'!$C$4:C294,'Ұпай бақылағыш'!C294)","v":"0"}]
[null,292,{"$f":"'Ұпай бақылағыш'!C295&COUNTIF('Ұпай бақылағыш'!$C$4:C295,'Ұпай бақылағыш'!C295)","v":"0"}]
[null,293,{"$f":"'Ұпай бақылағыш'!C296&COUNTIF('Ұпай бақылағыш'!$C$4:C296,'Ұпай бақылағыш'!C296)","v":"0"}]
[null,294,{"$f":"'Ұпай бақылағыш'!C297&COUNTIF('Ұпай бақылағыш'!$C$4:C297,'Ұпай бақылағыш'!C297)","v":"0"}]
[null,295,{"$f":"'Ұпай бақылағыш'!C298&COUNTIF('Ұпай бақылағыш'!$C$4:C298,'Ұпай бақылағыш'!C298)","v":"0"}]
[null,296,{"$f":"'Ұпай бақылағыш'!C299&COUNTIF('Ұпай бақылағыш'!$C$4:C299,'Ұпай бақылағыш'!C299)","v":"0"}]
[null,297,{"$f":"'Ұпай бақылағыш'!C300&COUNTIF('Ұпай бақылағыш'!$C$4:C300,'Ұпай бақылағыш'!C300)","v":"0"}]
[null,298,{"$f":"'Ұпай бақылағыш'!C301&COUNTIF('Ұпай бақылағыш'!$C$4:C301,'Ұпай бақылағыш'!C301)","v":"0"}]
[null,299,{"$f":"'Ұпай бақылағыш'!C302&COUNTIF('Ұпай бақылағыш'!$C$4:C302,'Ұпай бақылағыш'!C302)","v":"0"}]
[null,300,{"$f":"'Ұпай бақылағыш'!C303&COUNTIF('Ұпай бақылағыш'!$C$4:C303,'Ұпай бақылағыш'!C303)","v":"0"}]
[null,301,{"$f":"'Ұпай бақылағыш'!C304&COUNTIF('Ұпай бақылағыш'!$C$4:C304,'Ұпай бақылағыш'!C304)","v":"0"}]
[null,302,{"$f":"'Ұпай бақылағыш'!C305&COUNTIF('Ұпай бақылағыш'!$C$4:C305,'Ұпай бақылағыш'!C305)","v":"0"}]
[null,303,{"$f":"'Ұпай бақылағыш'!C306&COUNTIF('Ұпай бақылағыш'!$C$4:C306,'Ұпай бақылағыш'!C306)","v":"0"}]
[null,304,{"$f":"'Ұпай бақылағыш'!C307&COUNTIF('Ұпай бақылағыш'!$C$4:C307,'Ұпай бақылағыш'!C307)","v":"0"}]
[null,305,{"$f":"'Ұпай бақылағыш'!C308&COUNTIF('Ұпай бақылағыш'!$C$4:C308,'Ұпай бақылағыш'!C308)","v":"0"}]
[null,306,{"$f":"'Ұпай бақылағыш'!C309&COUNTIF('Ұпай бақылағыш'!$C$4:C309,'Ұпай бақылағыш'!C309)","v":"0"}]
[null,307,{"$f":"'Ұпай бақылағыш'!C310&COUNTIF('Ұпай бақылағыш'!$C$4:C310,'Ұпай бақылағыш'!C310)","v":"0"}]
[null,308,{"$f":"'Ұпай бақылағыш'!C311&COUNTIF('Ұпай бақылағыш'!$C$4:C311,'Ұпай бақылағыш'!C311)","v":"0"}]
[null,309,{"$f":"'Ұпай бақылағыш'!C312&COUNTIF('Ұпай бақылағыш'!$C$4:C312,'Ұпай бақылағыш'!C312)","v":"0"}]
[null,310,{"$f":"'Ұпай бақылағыш'!C313&COUNTIF('Ұпай бақылағыш'!$C$4:C313,'Ұпай бақылағыш'!C313)","v":"0"}]
[null,311,{"$f":"'Ұпай бақылағыш'!C314&COUNTIF('Ұпай бақылағыш'!$C$4:C314,'Ұпай бақылағыш'!C314)","v":"0"}]
[null,312,{"$f":"'Ұпай бақылағыш'!C315&COUNTIF('Ұпай бақылағыш'!$C$4:C315,'Ұпай бақылағыш'!C315)","v":"0"}]
[null,313,{"$f":"'Ұпай бақылағыш'!C316&COUNTIF('Ұпай бақылағыш'!$C$4:C316,'Ұпай бақылағыш'!C316)","v":"0"}]
[null,314,{"$f":"'Ұпай бақылағыш'!C317&COUNTIF('Ұпай бақылағыш'!$C$4:C317,'Ұпай бақылағыш'!C317)","v":"0"}]
[null,315,{"$f":"'Ұпай бақылағыш'!C318&COUNTIF('Ұпай бақылағыш'!$C$4:C318,'Ұпай бақылағыш'!C318)","v":"0"}]
[null,316,{"$f":"'Ұпай бақылағыш'!C319&COUNTIF('Ұпай бақылағыш'!$C$4:C319,'Ұпай бақылағыш'!C319)","v":"0"}]
[null,317,{"$f":"'Ұпай бақылағыш'!C320&COUNTIF('Ұпай бақылағыш'!$C$4:C320,'Ұпай бақылағыш'!C320)","v":"0"}]
[null,318,{"$f":"'Ұпай бақылағыш'!C321&COUNTIF('Ұпай бақылағыш'!$C$4:C321,'Ұпай бақылағыш'!C321)","v":"0"}]
[null,319,{"$f":"'Ұпай бақылағыш'!C322&COUNTIF('Ұпай бақылағыш'!$C$4:C322,'Ұпай бақылағыш'!C322)","v":"0"}]
[null,320,{"$f":"'Ұпай бақылағыш'!C323&COUNTIF('Ұпай бақылағыш'!$C$4:C323,'Ұпай бақылағыш'!C323)","v":"0"}]
[null,321,{"$f":"'Ұпай бақылағыш'!C324&COUNTIF('Ұпай бақылағыш'!$C$4:C324,'Ұпай бақылағыш'!C324)","v":"0"}]
[null,322,{"$f":"'Ұпай бақылағыш'!C325&COUNTIF('Ұпай бақылағыш'!$C$4:C325,'Ұпай бақылағыш'!C325)","v":"0"}]
[null,323,{"$f":"'Ұпай бақылағыш'!C326&COUNTIF('Ұпай бақылағыш'!$C$4:C326,'Ұпай бақылағыш'!C326)","v":"0"}]
[null,324,{"$f":"'Ұпай бақылағыш'!C327&COUNTIF('Ұпай бақылағыш'!$C$4:C327,'Ұпай бақылағыш'!C327)","v":"0"}]
[null,325,{"$f":"'Ұпай бақылағыш'!C328&COUNTIF('Ұпай бақылағыш'!$C$4:C328,'Ұпай бақылағыш'!C328)","v":"0"}]
[null,326,{"$f":"'Ұпай бақылағыш'!C329&COUNTIF('Ұпай бақылағыш'!$C$4:C329,'Ұпай бақылағыш'!C329)","v":"0"}]
[null,327,{"$f":"'Ұпай бақылағыш'!C330&COUNTIF('Ұпай бақылағыш'!$C$4:C330,'Ұпай бақылағыш'!C330)","v":"0"}]
[null,328,{"$f":"'Ұпай бақылағыш'!C331&COUNTIF('Ұпай бақылағыш'!$C$4:C331,'Ұпай бақылағыш'!C331)","v":"0"}]
[null,329,{"$f":"'Ұпай бақылағыш'!C332&COUNTIF('Ұпай бақылағыш'!$C$4:C332,'Ұпай бақылағыш'!C332)","v":"0"}]
[null,330,{"$f":"'Ұпай бақылағыш'!C333&COUNTIF('Ұпай бақылағыш'!$C$4:C333,'Ұпай бақылағыш'!C333)","v":"0"}]
[null,331,{"$f":"'Ұпай бақылағыш'!C334&COUNTIF('Ұпай бақылағыш'!$C$4:C334,'Ұпай бақылағыш'!C334)","v":"0"}]
[null,332,{"$f":"'Ұпай бақылағыш'!C335&COUNTIF('Ұпай бақылағыш'!$C$4:C335,'Ұпай бақылағыш'!C335)","v":"0"}]
[null,333,{"$f":"'Ұпай бақылағыш'!C336&COUNTIF('Ұпай бақылағыш'!$C$4:C336,'Ұпай бақылағыш'!C336)","v":"0"}]
[null,334,{"$f":"'Ұпай бақылағыш'!C337&COUNTIF('Ұпай бақылағыш'!$C$4:C337,'Ұпай бақылағыш'!C337)","v":"0"}]
[null,335,{"$f":"'Ұпай бақылағыш'!C338&COUNTIF('Ұпай бақылағыш'!$C$4:C338,'Ұпай бақылағыш'!C338)","v":"0"}]
[null,336,{"$f":"'Ұпай бақылағыш'!C339&COUNTIF('Ұпай бақылағыш'!$C$4:C339,'Ұпай бақылағыш'!C339)","v":"0"}]
[null,337,{"$f":"'Ұпай бақылағыш'!C340&COUNTIF('Ұпай бақылағыш'!$C$4:C340,'Ұпай бақылағыш'!C340)","v":"0"}]
[null,338,{"$f":"'Ұпай бақылағыш'!C341&COUNTIF('Ұпай бақылағыш'!$C$4:C341,'Ұпай бақылағыш'!C341)","v":"0"}]
[null,339,{"$f":"'Ұпай бақылағыш'!C342&COUNTIF('Ұпай бақылағыш'!$C$4:C342,'Ұпай бақылағыш'!C342)","v":"0"}]
[null,340,{"$f":"'Ұпай бақылағыш'!C343&COUNTIF('Ұпай бақылағыш'!$C$4:C343,'Ұпай бақылағыш'!C343)","v":"0"}]
[null,341,{"$f":"'Ұпай бақылағыш'!C344&COUNTIF('Ұпай бақылағыш'!$C$4:C344,'Ұпай бақылағыш'!C344)","v":"0"}]
[null,342,{"$f":"'Ұпай бақылағыш'!C345&COUNTIF('Ұпай бақылағыш'!$C$4:C345,'Ұпай бақылағыш'!C345)","v":"0"}]
[null,343,{"$f":"'Ұпай бақылағыш'!C346&COUNTIF('Ұпай бақылағыш'!$C$4:C346,'Ұпай бақылағыш'!C346)","v":"0"}]
[null,344,{"$f":"'Ұпай бақылағыш'!C347&COUNTIF('Ұпай бақылағыш'!$C$4:C347,'Ұпай бақылағыш'!C347)","v":"0"}]
[null,345,{"$f":"'Ұпай бақылағыш'!C348&COUNTIF('Ұпай бақылағыш'!$C$4:C348,'Ұпай бақылағыш'!C348)","v":"0"}]
[null,346,{"$f":"'Ұпай бақылағыш'!C349&COUNTIF('Ұпай бақылағыш'!$C$4:C349,'Ұпай бақылағыш'!C349)","v":"0"}]
[null,347,{"$f":"'Ұпай бақылағыш'!C350&COUNTIF('Ұпай бақылағыш'!$C$4:C350,'Ұпай бақылағыш'!C350)","v":"0"}]
[null,348,{"$f":"'Ұпай бақылағыш'!C351&COUNTIF('Ұпай бақылағыш'!$C$4:C351,'Ұпай бақылағыш'!C351)","v":"0"}]
[null,349,{"$f":"'Ұпай бақылағыш'!C352&COUNTIF('Ұпай бақылағыш'!$C$4:C352,'Ұпай бақылағыш'!C352)","v":"0"}]
[null,350,{"$f":"'Ұпай бақылағыш'!C353&COUNTIF('Ұпай бақылағыш'!$C$4:C353,'Ұпай бақылағыш'!C353)","v":"0"}]
[null,351,{"$f":"'Ұпай бақылағыш'!C354&COUNTIF('Ұпай бақылағыш'!$C$4:C354,'Ұпай бақылағыш'!C354)","v":"0"}]
[null,352,{"$f":"'Ұпай бақылағыш'!C355&COUNTIF('Ұпай бақылағыш'!$C$4:C355,'Ұпай бақылағыш'!C355)","v":"0"}]
[null,353,{"$f":"'Ұпай бақылағыш'!C356&COUNTIF('Ұпай бақылағыш'!$C$4:C356,'Ұпай бақылағыш'!C356)","v":"0"}]
[null,354,{"$f":"'Ұпай бақылағыш'!C357&COUNTIF('Ұпай бақылағыш'!$C$4:C357,'Ұпай бақылағыш'!C357)","v":"0"}]
[null,355,{"$f":"'Ұпай бақылағыш'!C358&COUNTIF('Ұпай бақылағыш'!$C$4:C358,'Ұпай бақылағыш'!C358)","v":"0"}]
[null,356,{"$f":"'Ұпай бақылағыш'!C359&COUNTIF('Ұпай бақылағыш'!$C$4:C359,'Ұпай бақылағыш'!C359)","v":"0"}]
[null,357,{"$f":"'Ұпай бақылағыш'!C360&COUNTIF('Ұпай бақылағыш'!$C$4:C360,'Ұпай бақылағыш'!C360)","v":"0"}]
[null,358,{"$f":"'Ұпай бақылағыш'!C361&COUNTIF('Ұпай бақылағыш'!$C$4:C361,'Ұпай бақылағыш'!C361)","v":"0"}]
[null,359,{"$f":"'Ұпай бақылағыш'!C362&COUNTIF('Ұпай бақылағыш'!$C$4:C362,'Ұпай бақылағыш'!C362)","v":"0"}]
[null,360,{"$f":"'Ұпай бақылағыш'!C363&COUNTIF('Ұпай бақылағыш'!$C$4:C363,'Ұпай бақылағыш'!C363)","v":"0"}]
[null,361,{"$f":"'Ұпай бақылағыш'!C364&COUNTIF('Ұпай бақылағыш'!$C$4:C364,'Ұпай бақылағыш'!C364)","v":"0"}]
[null,362,{"$f":"'Ұпай бақылағыш'!C365&COUNTIF('Ұпай бақылағыш'!$C$4:C365,'Ұпай бақылағыш'!C365)","v":"0"}]
[null,363,{"$f":"'Ұпай бақылағыш'!C366&COUNTIF('Ұпай бақылағыш'!$C$4:C366,'Ұпай бақылағыш'!C366)","v":"0"}]
[null,364,{"$f":"'Ұпай бақылағыш'!C367&COUNTIF('Ұпай бақылағыш'!$C$4:C367,'Ұпай бақылағыш'!C367)","v":"0"}]
[null,365,{"$f":"'Ұпай бақылағыш'!C368&COUNTIF('Ұпай бақылағыш'!$C$4:C368,'Ұпай бақылағыш'!C368)","v":"0"}]
[null,366,{"$f":"'Ұпай бақылағыш'!C369&COUNTIF('Ұпай бақылағыш'!$C$4:C369,'Ұпай бақылағыш'!C369)","v":"0"}]
[null,367,{"$f":"'Ұпай бақылағыш'!C370&COUNTIF('Ұпай бақылағыш'!$C$4:C370,'Ұпай бақылағыш'!C370)","v":"0"}]
[null,368,{"$f":"'Ұпай бақылағыш'!C371&COUNTIF('Ұпай бақылағыш'!$C$4:C371,'Ұпай бақылағыш'!C371)","v":"0"}]
[null,369,{"$f":"'Ұпай бақылағыш'!C372&COUNTIF('Ұпай бақылағыш'!$C$4:C372,'Ұпай бақылағыш'!C372)","v":"0"}]
[null,370,{"$f":"'Ұпай бақылағыш'!C373&COUNTIF('Ұпай бақылағыш'!$C$4:C373,'Ұпай бақылағыш'!C373)","v":"0"}]
[null,371,{"$f":"'Ұпай бақылағыш'!C374&COUNTIF('Ұпай бақылағыш'!$C$4:C374,'Ұпай бақылағыш'!C374)","v":"0"}]
[null,372,{"$f":"'Ұпай бақылағыш'!C375&COUNTIF('Ұпай бақылағыш'!$C$4:C375,'Ұпай бақылағыш'!C375)","v":"0"}]
[null,373,{"$f":"'Ұпай бақылағыш'!C376&COUNTIF('Ұпай бақылағыш'!$C$4:C376,'Ұпай бақылағыш'!C376)","v":"0"}]
[null,374,{"$f":"'Ұпай бақылағыш'!C377&COUNTIF('Ұпай бақылағыш'!$C$4:C377,'Ұпай бақылағыш'!C377)","v":"0"}]
[null,375,{"$f":"'Ұпай бақылағыш'!C378&COUNTIF('Ұпай бақылағыш'!$C$4:C378,'Ұпай бақылағыш'!C378)","v":"0"}]
[null,376,{"$f":"'Ұпай бақылағыш'!C379&COUNTIF('Ұпай бақылағыш'!$C$4:C379,'Ұпай бақылағыш'!C379)","v":"0"}]
[null,377,{"$f":"'Ұпай бақылағыш'!C380&COUNTIF('Ұпай бақылағыш'!$C$4:C380,'Ұпай бақылағыш'!C380)","v":"0"}]
[null,378,{"$f":"'Ұпай бақылағыш'!C381&COUNTIF('Ұпай бақылағыш'!$C$4:C381,'Ұпай бақылағыш'!C381)","v":"0"}]
[null,379,{"$f":"'Ұпай бақылағыш'!C382&COUNTIF('Ұпай бақылағыш'!$C$4:C382,'Ұпай бақылағыш'!C382)","v":"0"}]
[null,380,{"$f":"'Ұпай бақылағыш'!C383&COUNTIF('Ұпай бақылағыш'!$C$4:C383,'Ұпай бақылағыш'!C383)","v":"0"}]
[null,381,{"$f":"'Ұпай бақылағыш'!C384&COUNTIF('Ұпай бақылағыш'!$C$4:C384,'Ұпай бақылағыш'!C384)","v":"0"}]
[null,382,{"$f":"'Ұпай бақылағыш'!C385&COUNTIF('Ұпай бақылағыш'!$C$4:C385,'Ұпай бақылағыш'!C385)","v":"0"}]
[null,383,{"$f":"'Ұпай бақылағыш'!C386&COUNTIF('Ұпай бақылағыш'!$C$4:C386,'Ұпай бақылағыш'!C386)","v":"0"}]
[null,384,{"$f":"'Ұпай бақылағыш'!C387&COUNTIF('Ұпай бақылағыш'!$C$4:C387,'Ұпай бақылағыш'!C387)","v":"0"}]
[null,385,{"$f":"'Ұпай бақылағыш'!C388&COUNTIF('Ұпай бақылағыш'!$C$4:C388,'Ұпай бақылағыш'!C388)","v":"0"}]
[null,386,{"$f":"'Ұпай бақылағыш'!C389&COUNTIF('Ұпай бақылағыш'!$C$4:C389,'Ұпай бақылағыш'!C389)","v":"0"}]
[null,387,{"$f":"'Ұпай бақылағыш'!C390&COUNTIF('Ұпай бақылағыш'!$C$4:C390,'Ұпай бақылағыш'!C390)","v":"0"}]
[null,388,{"$f":"'Ұпай бақылағыш'!C391&COUNTIF('Ұпай бақылағыш'!$C$4:C391,'Ұпай бақылағыш'!C391)","v":"0"}]
[null,389,{"$f":"'Ұпай бақылағыш'!C392&COUNTIF('Ұпай бақылағыш'!$C$4:C392,'Ұпай бақылағыш'!C392)","v":"0"}]
[null,390,{"$f":"'Ұпай бақылағыш'!C393&COUNTIF('Ұпай бақылағыш'!$C$4:C393,'Ұпай бақылағыш'!C393)","v":"0"}]
[null,391,{"$f":"'Ұпай бақылағыш'!C394&COUNTIF('Ұпай бақылағыш'!$C$4:C394,'Ұпай бақылағыш'!C394)","v":"0"}]
[null,392,{"$f":"'Ұпай бақылағыш'!C395&COUNTIF('Ұпай бақылағыш'!$C$4:C395,'Ұпай бақылағыш'!C395)","v":"0"}]
[null,393,{"$f":"'Ұпай бақылағыш'!C396&COUNTIF('Ұпай бақылағыш'!$C$4:C396,'Ұпай бақылағыш'!C396)","v":"0"}]
[null,394,{"$f":"'Ұпай бақылағыш'!C397&COUNTIF('Ұпай бақылағыш'!$C$4:C397,'Ұпай бақылағыш'!C397)","v":"0"}]
[null,395,{"$f":"'Ұпай бақылағыш'!C398&COUNTIF('Ұпай бақылағыш'!$C$4:C398,'Ұпай бақылағыш'!C398)","v":"0"}]
[null,396,{"$f":"'Ұпай бақылағыш'!C399&COUNTIF('Ұпай бақылағыш'!$C$4:C399,'Ұпай бақылағыш'!C399)","v":"0"}]
[null,397,{"$f":"'Ұпай бақылағыш'!C400&COUNTIF('Ұпай бақылағыш'!$C$4:C400,'Ұпай бақылағыш'!C400)","v":"0"}]
[null,398,{"$f":"'Ұпай бақылағыш'!C401&COUNTIF('Ұпай бақылағыш'!$C$4:C401,'Ұпай бақылағыш'!C401)","v":"0"}]
[null,399,{"$f":"'Ұпай бақылағыш'!C402&COUNTIF('Ұпай бақылағыш'!$C$4:C402,'Ұпай бақылағыш'!C402)","v":"0"}]
[null,400,{"$f":"'Ұпай бақылағыш'!C403&COUNTIF('Ұпай бақылағыш'!$C$4:C403,'Ұпай бақылағыш'!C403)","v":"0"}]
[null,401,{"$f":"'Ұпай бақылағыш'!C404&COUNTIF('Ұпай бақылағыш'!$C$4:C404,'Ұпай бақылағыш'!C404)","v":"0"}]
[null,402,{"$f":"'Ұпай бақылағыш'!C405&COUNTIF('Ұпай бақылағыш'!$C$4:C405,'Ұпай бақылағыш'!C405)","v":"0"}]
[null,403,{"$f":"'Ұпай бақылағыш'!C406&COUNTIF('Ұпай бақылағыш'!$C$4:C406,'Ұпай бақылағыш'!C406)","v":"0"}]
[null,404,{"$f":"'Ұпай бақылағыш'!C407&COUNTIF('Ұпай бақылағыш'!$C$4:C407,'Ұпай бақылағыш'!C407)","v":"0"}]
[null,405,{"$f":"'Ұпай бақылағыш'!C408&COUNTIF('Ұпай бақылағыш'!$C$4:C408,'Ұпай бақылағыш'!C408)","v":"0"}]
[null,406,{"$f":"'Ұпай бақылағыш'!C409&COUNTIF('Ұпай бақылағыш'!$C$4:C409,'Ұпай бақылағыш'!C409)","v":"0"}]
[null,407,{"$f":"'Ұпай бақылағыш'!C410&COUNTIF('Ұпай бақылағыш'!$C$4:C410,'Ұпай бақылағыш'!C410)","v":"0"}]
[null,408,{"$f":"'Ұпай бақылағыш'!C411&COUNTIF('Ұпай бақылағыш'!$C$4:C411,'Ұпай бақылағыш'!C411)","v":"0"}]
[null,409,{"$f":"'Ұпай бақылағыш'!C412&COUNTIF('Ұпай бақылағыш'!$C$4:C412,'Ұпай бақылағыш'!C412)","v":"0"}]
[null,410,{"$f":"'Ұпай бақылағыш'!C413&COUNTIF('Ұпай бақылағыш'!$C$4:C413,'Ұпай бақылағыш'!C413)","v":"0"}]
[null,411,{"$f":"'Ұпай бақылағыш'!C414&COUNTIF('Ұпай бақылағыш'!$C$4:C414,'Ұпай бақылағыш'!C414)","v":"0"}]
[null,412,{"$f":"'Ұпай бақылағыш'!C415&COUNTIF('Ұпай бақылағыш'!$C$4:C415,'Ұпай бақылағыш'!C415)","v":"0"}]
[null,413,{"$f":"'Ұпай бақылағыш'!C416&COUNTIF('Ұпай бақылағыш'!$C$4:C416,'Ұпай бақылағыш'!C416)","v":"0"}]
[null,414,{"$f":"'Ұпай бақылағыш'!C417&COUNTIF('Ұпай бақылағыш'!$C$4:C417,'Ұпай бақылағыш'!C417)","v":"0"}]
[null,415,{"$f":"'Ұпай бақылағыш'!C418&COUNTIF('Ұпай бақылағыш'!$C$4:C418,'Ұпай бақылағыш'!C418)","v":"0"}]
[null,416,{"$f":"'Ұпай бақылағыш'!C419&COUNTIF('Ұпай бақылағыш'!$C$4:C419,'Ұпай бақылағыш'!C419)","v":"0"}]
[null,417,{"$f":"'Ұпай бақылағыш'!C420&COUNTIF('Ұпай бақылағыш'!$C$4:C420,'Ұпай бақылағыш'!C420)","v":"0"}]
[null,418,{"$f":"'Ұпай бақылағыш'!C421&COUNTIF('Ұпай бақылағыш'!$C$4:C421,'Ұпай бақылағыш'!C421)","v":"0"}]
[null,419,{"$f":"'Ұпай бақылағыш'!C422&COUNTIF('Ұпай бақылағыш'!$C$4:C422,'Ұпай бақылағыш'!C422)","v":"0"}]
[null,420,{"$f":"'Ұпай бақылағыш'!C423&COUNTIF('Ұпай бақылағыш'!$C$4:C423,'Ұпай бақылағыш'!C423)","v":"0"}]
[null,421,{"$f":"'Ұпай бақылағыш'!C424&COUNTIF('Ұпай бақылағыш'!$C$4:C424,'Ұпай бақылағыш'!C424)","v":"0"}]
[null,422,{"$f":"'Ұпай бақылағыш'!C425&COUNTIF('Ұпай бақылағыш'!$C$4:C425,'Ұпай бақылағыш'!C425)","v":"0"}]
[null,423,{"$f":"'Ұпай бақылағыш'!C426&COUNTIF('Ұпай бақылағыш'!$C$4:C426,'Ұпай бақылағыш'!C426)","v":"0"}]
[null,424,{"$f":"'Ұпай бақылағыш'!C427&COUNTIF('Ұпай бақылағыш'!$C$4:C427,'Ұпай бақылағыш'!C427)","v":"0"}]
[null,425,{"$f":"'Ұпай бақылағыш'!C428&COUNTIF('Ұпай бақылағыш'!$C$4:C428,'Ұпай бақылағыш'!C428)","v":"0"}]
[null,426,{"$f":"'Ұпай бақылағыш'!C429&COUNTIF('Ұпай бақылағыш'!$C$4:C429,'Ұпай бақылағыш'!C429)","v":"0"}]
[null,427,{"$f":"'Ұпай бақылағыш'!C430&COUNTIF('Ұпай бақылағыш'!$C$4:C430,'Ұпай бақылағыш'!C430)","v":"0"}]
[null,428,{"$f":"'Ұпай бақылағыш'!C431&COUNTIF('Ұпай бақылағыш'!$C$4:C431,'Ұпай бақылағыш'!C431)","v":"0"}]
[null,429,{"$f":"'Ұпай бақылағыш'!C432&COUNTIF('Ұпай бақылағыш'!$C$4:C432,'Ұпай бақылағыш'!C432)","v":"0"}]
[null,430,{"$f":"'Ұпай бақылағыш'!C433&COUNTIF('Ұпай бақылағыш'!$C$4:C433,'Ұпай бақылағыш'!C433)","v":"0"}]
[null,431,{"$f":"'Ұпай бақылағыш'!C434&COUNTIF('Ұпай бақылағыш'!$C$4:C434,'Ұпай бақылағыш'!C434)","v":"0"}]
[null,432,{"$f":"'Ұпай бақылағыш'!C435&COUNTIF('Ұпай бақылағыш'!$C$4:C435,'Ұпай бақылағыш'!C435)","v":"0"}]
[null,433,{"$f":"'Ұпай бақылағыш'!C436&COUNTIF('Ұпай бақылағыш'!$C$4:C436,'Ұпай бақылағыш'!C436)","v":"0"}]
[null,434,{"$f":"'Ұпай бақылағыш'!C437&COUNTIF('Ұпай бақылағыш'!$C$4:C437,'Ұпай бақылағыш'!C437)","v":"0"}]
[null,435,{"$f":"'Ұпай бақылағыш'!C438&COUNTIF('Ұпай бақылағыш'!$C$4:C438,'Ұпай бақылағыш'!C438)","v":"0"}]
[null,436,{"$f":"'Ұпай бақылағыш'!C439&COUNTIF('Ұпай бақылағыш'!$C$4:C439,'Ұпай бақылағыш'!C439)","v":"0"}]
[null,437,{"$f":"'Ұпай бақылағыш'!C440&COUNTIF('Ұпай бақылағыш'!$C$4:C440,'Ұпай бақылағыш'!C440)","v":"0"}]
[null,438,{"$f":"'Ұпай бақылағыш'!C441&COUNTIF('Ұпай бақылағыш'!$C$4:C441,'Ұпай бақылағыш'!C441)","v":"0"}]
[null,439,{"$f":"'Ұпай бақылағыш'!C442&COUNTIF('Ұпай бақылағыш'!$C$4:C442,'Ұпай бақылағыш'!C442)","v":"0"}]
[null,440,{"$f":"'Ұпай бақылағыш'!C443&COUNTIF('Ұпай бақылағыш'!$C$4:C443,'Ұпай бақылағыш'!C443)","v":"0"}]
[null,441,{"$f":"'Ұпай бақылағыш'!C444&COUNTIF('Ұпай бақылағыш'!$C$4:C444,'Ұпай бақылағыш'!C444)","v":"0"}]
[null,442,{"$f":"'Ұпай бақылағыш'!C445&COUNTIF('Ұпай бақылағыш'!$C$4:C445,'Ұпай бақылағыш'!C445)","v":"0"}]
[null,443,{"$f":"'Ұпай бақылағыш'!C446&COUNTIF('Ұпай бақылағыш'!$C$4:C446,'Ұпай бақылағыш'!C446)","v":"0"}]
[null,444,{"$f":"'Ұпай бақылағыш'!C447&COUNTIF('Ұпай бақылағыш'!$C$4:C447,'Ұпай бақылағыш'!C447)","v":"0"}]
[null,445,{"$f":"'Ұпай бақылағыш'!C448&COUNTIF('Ұпай бақылағыш'!$C$4:C448,'Ұпай бақылағыш'!C448)","v":"0"}]
[null,446,{"$f":"'Ұпай бақылағыш'!C449&COUNTIF('Ұпай бақылағыш'!$C$4:C449,'Ұпай бақылағыш'!C449)","v":"0"}]
[null,447,{"$f":"'Ұпай бақылағыш'!C450&COUNTIF('Ұпай бақылағыш'!$C$4:C450,'Ұпай бақылағыш'!C450)","v":"0"}]
[null,448,{"$f":"'Ұпай бақылағыш'!C451&COUNTIF('Ұпай бақылағыш'!$C$4:C451,'Ұпай бақылағыш'!C451)","v":"0"}]
[null,449,{"$f":"'Ұпай бақылағыш'!C452&COUNTIF('Ұпай бақылағыш'!$C$4:C452,'Ұпай бақылағыш'!C452)","v":"0"}]
[null,450,{"$f":"'Ұпай бақылағыш'!C453&COUNTIF('Ұпай бақылағыш'!$C$4:C453,'Ұпай бақылағыш'!C453)","v":"0"}]
[null,451,{"$f":"'Ұпай бақылағыш'!C454&COUNTIF('Ұпай бақылағыш'!$C$4:C454,'Ұпай бақылағыш'!C454)","v":"0"}]
[null,452,{"$f":"'Ұпай бақылағыш'!C455&COUNTIF('Ұпай бақылағыш'!$C$4:C455,'Ұпай бақылағыш'!C455)","v":"0"}]
[null,453,{"$f":"'Ұпай бақылағыш'!C456&COUNTIF('Ұпай бақылағыш'!$C$4:C456,'Ұпай бақылағыш'!C456)","v":"0"}]
[null,454,{"$f":"'Ұпай бақылағыш'!C457&COUNTIF('Ұпай бақылағыш'!$C$4:C457,'Ұпай бақылағыш'!C457)","v":"0"}]
[null,455,{"$f":"'Ұпай бақылағыш'!C458&COUNTIF('Ұпай бақылағыш'!$C$4:C458,'Ұпай бақылағыш'!C458)","v":"0"}]
[null,456,{"$f":"'Ұпай бақылағыш'!C459&COUNTIF('Ұпай бақылағыш'!$C$4:C459,'Ұпай бақылағыш'!C459)","v":"0"}]
[null,457,{"$f":"'Ұпай бақылағыш'!C460&COUNTIF('Ұпай бақылағыш'!$C$4:C460,'Ұпай бақылағыш'!C460)","v":"0"}]
[null,458,{"$f":"'Ұпай бақылағыш'!C461&COUNTIF('Ұпай бақылағыш'!$C$4:C461,'Ұпай бақылағыш'!C461)","v":"0"}]
[null,459,{"$f":"'Ұпай бақылағыш'!C462&COUNTIF('Ұпай бақылағыш'!$C$4:C462,'Ұпай бақылағыш'!C462)","v":"0"}]
[null,460,{"$f":"'Ұпай бақылағыш'!C463&COUNTIF('Ұпай бақылағыш'!$C$4:C463,'Ұпай бақылағыш'!C463)","v":"0"}]
[null,461,{"$f":"'Ұпай бақылағыш'!C464&COUNTIF('Ұпай бақылағыш'!$C$4:C464,'Ұпай бақылағыш'!C464)","v":"0"}]
[null,462,{"$f":"'Ұпай бақылағыш'!C465&COUNTIF('Ұпай бақылағыш'!$C$4:C465,'Ұпай бақылағыш'!C465)","v":"0"}]
[null,463,{"$f":"'Ұпай бақылағыш'!C466&COUNTIF('Ұпай бақылағыш'!$C$4:C466,'Ұпай бақылағыш'!C466)","v":"0"}]
[null,464,{"$f":"'Ұпай бақылағыш'!C467&COUNTIF('Ұпай бақылағыш'!$C$4:C467,'Ұпай бақылағыш'!C467)","v":"0"}]
[null,465,{"$f":"'Ұпай бақылағыш'!C468&COUNTIF('Ұпай бақылағыш'!$C$4:C468,'Ұпай бақылағыш'!C468)","v":"0"}]
[null,466,{"$f":"'Ұпай бақылағыш'!C469&COUNTIF('Ұпай бақылағыш'!$C$4:C469,'Ұпай бақылағыш'!C469)","v":"0"}]
[null,467,{"$f":"'Ұпай бақылағыш'!C470&COUNTIF('Ұпай бақылағыш'!$C$4:C470,'Ұпай бақылағыш'!C470)","v":"0"}]
[null,468,{"$f":"'Ұпай бақылағыш'!C471&COUNTIF('Ұпай бақылағыш'!$C$4:C471,'Ұпай бақылағыш'!C471)","v":"0"}]
[null,469,{"$f":"'Ұпай бақылағыш'!C472&COUNTIF('Ұпай бақылағыш'!$C$4:C472,'Ұпай бақылағыш'!C472)","v":"0"}]
[null,470,{"$f":"'Ұпай бақылағыш'!C473&COUNTIF('Ұпай бақылағыш'!$C$4:C473,'Ұпай бақылағыш'!C473)","v":"0"}]
[null,471,{"$f":"'Ұпай бақылағыш'!C474&COUNTIF('Ұпай бақылағыш'!$C$4:C474,'Ұпай бақылағыш'!C474)","v":"0"}]
[null,472,{"$f":"'Ұпай бақылағыш'!C475&COUNTIF('Ұпай бақылағыш'!$C$4:C475,'Ұпай бақылағыш'!C475)","v":"0"}]
[null,473,{"$f":"'Ұпай бақылағыш'!C476&COUNTIF('Ұпай бақылағыш'!$C$4:C476,'Ұпай бақылағыш'!C476)","v":"0"}]
[null,474,{"$f":"'Ұпай бақылағыш'!C477&COUNTIF('Ұпай бақылағыш'!$C$4:C477,'Ұпай бақылағыш'!C477)","v":"0"}]
[null,475,{"$f":"'Ұпай бақылағыш'!C478&COUNTIF('Ұпай бақылағыш'!$C$4:C478,'Ұпай бақылағыш'!C478)","v":"0"}]
[null,476,{"$f":"'Ұпай бақылағыш'!C479&COUNTIF('Ұпай бақылағыш'!$C$4:C479,'Ұпай бақылағыш'!C479)","v":"0"}]
[null,477,{"$f":"'Ұпай бақылағыш'!C480&COUNTIF('Ұпай бақылағыш'!$C$4:C480,'Ұпай бақылағыш'!C480)","v":"0"}]
[null,478,{"$f":"'Ұпай бақылағыш'!C481&COUNTIF('Ұпай бақылағыш'!$C$4:C481,'Ұпай бақылағыш'!C481)","v":"0"}]
[null,479,{"$f":"'Ұпай бақылағыш'!C482&COUNTIF('Ұпай бақылағыш'!$C$4:C482,'Ұпай бақылағыш'!C482)","v":"0"}]
[null,480,{"$f":"'Ұпай бақылағыш'!C483&COUNTIF('Ұпай бақылағыш'!$C$4:C483,'Ұпай бақылағыш'!C483)","v":"0"}]
[null,481,{"$f":"'Ұпай бақылағыш'!C484&COUNTIF('Ұпай бақылағыш'!$C$4:C484,'Ұпай бақылағыш'!C484)","v":"0"}]
[null,482,{"$f":"'Ұпай бақылағыш'!C485&COUNTIF('Ұпай бақылағыш'!$C$4:C485,'Ұпай бақылағыш'!C485)","v":"0"}]
[null,483,{"$f":"'Ұпай бақылағыш'!C486&COUNTIF('Ұпай бақылағыш'!$C$4:C486,'Ұпай бақылағыш'!C486)","v":"0"}]
[null,484,{"$f":"'Ұпай бақылағыш'!C487&COUNTIF('Ұпай бақылағыш'!$C$4:C487,'Ұпай бақылағыш'!C487)","v":"0"}]
[null,485,{"$f":"'Ұпай бақылағыш'!C488&COUNTIF('Ұпай бақылағыш'!$C$4:C488,'Ұпай бақылағыш'!C488)","v":"0"}]
[null,486,{"$f":"'Ұпай бақылағыш'!C489&COUNTIF('Ұпай бақылағыш'!$C$4:C489,'Ұпай бақылағыш'!C489)","v":"0"}]
[null,487,{"$f":"'Ұпай бақылағыш'!C490&COUNTIF('Ұпай бақылағыш'!$C$4:C490,'Ұпай бақылағыш'!C490)","v":"0"}]
[null,488,{"$f":"'Ұпай бақылағыш'!C491&COUNTIF('Ұпай бақылағыш'!$C$4:C491,'Ұпай бақылағыш'!C491)","v":"0"}]
[null,489,{"$f":"'Ұпай бақылағыш'!C492&COUNTIF('Ұпай бақылағыш'!$C$4:C492,'Ұпай бақылағыш'!C492)","v":"0"}]
[null,490,{"$f":"'Ұпай бақылағыш'!C493&COUNTIF('Ұпай бақылағыш'!$C$4:C493,'Ұпай бақылағыш'!C493)","v":"0"}]
[null,491,{"$f":"'Ұпай бақылағыш'!C494&COUNTIF('Ұпай бақылағыш'!$C$4:C494,'Ұпай бақылағыш'!C494)","v":"0"}]
[null,492,{"$f":"'Ұпай бақылағыш'!C495&COUNTIF('Ұпай бақылағыш'!$C$4:C495,'Ұпай бақылағыш'!C495)","v":"0"}]
[null,493,{"$f":"'Ұпай бақылағыш'!C496&COUNTIF('Ұпай бақылағыш'!$C$4:C496,'Ұпай бақылағыш'!C496)","v":"0"}]
[null,494,{"$f":"'Ұпай бақылағыш'!C497&COUNTIF('Ұпай бақылағыш'!$C$4:C497,'Ұпай бақылағыш'!C497)","v":"0"}]
[null,495,{"$f":"'Ұпай бақылағыш'!C498&COUNTIF('Ұпай бақылағыш'!$C$4:C498,'Ұпай бақылағыш'!C498)","v":"0"}]
[null,496,{"$f":"'Ұпай бақылағыш'!C499&COUNTIF('Ұпай бақылағыш'!$C$4:C499,'Ұпай бақылағыш'!C499)","v":"0"}]
[null,497,{"$f":"'Ұпай бақылағыш'!C500&COUNTIF('Ұпай бақылағыш'!$C$4:C500,'Ұпай бақылағыш'!C500)","v":"0"}]
[null,498,{"$f":"'Ұпай бақылағыш'!C501&COUNTIF('Ұпай бақылағыш'!$C$4:C501,'Ұпай бақылағыш'!C501)","v":"0"}]
[null,499,{"$f":"'Ұпай бақылағыш'!C502&COUNTIF('Ұпай бақылағыш'!$C$4:C502,'Ұпай бақылағыш'!C502)","v":"0"}]
[null,500,{"$f":"'Ұпай бақылағыш'!C503&COUNTIF('Ұпай бақылағыш'!$C$4:C503,'Ұпай бақылағыш'!C503)","v":"0"}]
[null,501,{"$f":"'Ұпай бақылағыш'!C504&COUNTIF('Ұпай бақылағыш'!$C$4:C504,'Ұпай бақылағыш'!C504)","v":"0"}]
[null,502,{"$f":"'Ұпай бақылағыш'!C505&COUNTIF('Ұпай бақылағыш'!$C$4:C505,'Ұпай бақылағыш'!C505)","v":"0"}]
[null,503,{"$f":"'Ұпай бақылағыш'!C506&COUNTIF('Ұпай бақылағыш'!$C$4:C506,'Ұпай бақылағыш'!C506)","v":"0"}]
[null,504,{"$f":"'Ұпай бақылағыш'!C507&COUNTIF('Ұпай бақылағыш'!$C$4:C507,'Ұпай бақылағыш'!C507)","v":"0"}]
[null,505,{"$f":"'Ұпай бақылағыш'!C508&COUNTIF('Ұпай бақылағыш'!$C$4:C508,'Ұпай бақылағыш'!C508)","v":"0"}]
[null,506,{"$f":"'Ұпай бақылағыш'!C509&COUNTIF('Ұпай бақылағыш'!$C$4:C509,'Ұпай бақылағыш'!C509)","v":"0"}]
[null,507,{"$f":"'Ұпай бақылағыш'!C510&COUNTIF('Ұпай бақылағыш'!$C$4:C510,'Ұпай бақылағыш'!C510)","v":"0"}]
[null,508,{"$f":"'Ұпай бақылағыш'!C511&COUNTIF('Ұпай бақылағыш'!$C$4:C511,'Ұпай бақылағыш'!C511)","v":"0"}]
[null,509,{"$f":"'Ұпай бақылағыш'!C512&COUNTIF('Ұпай бақылағыш'!$C$4:C512,'Ұпай бақылағыш'!C512)","v":"0"}]
[null,510,{"$f":"'Ұпай бақылағыш'!C513&COUNTIF('Ұпай бақылағыш'!$C$4:C513,'Ұпай бақылағыш'!C513)","v":"0"}]
[null,511,{"$f":"'Ұпай бақылағыш'!C514&COUNTIF('Ұпай бақылағыш'!$C$4:C514,'Ұпай бақылағыш'!C514)","v":"0"}]
[null,512,{"$f":"'Ұпай бақылағыш'!C515&COUNTIF('Ұпай бақылағыш'!$C$4:C515,'Ұпай бақылағыш'!C515)","v":"0"}]
[null,513,{"$f":"'Ұпай бақылағыш'!C516&COUNTIF('Ұпай бақылағыш'!$C$4:C516,'Ұпай бақылағыш'!C516)","v":"0"}]
[null,514,{"$f":"'Ұпай бақылағыш'!C517&COUNTIF('Ұпай бақылағыш'!$C$4:C517,'Ұпай бақылағыш'!C517)","v":"0"}]
[null,515,{"$f":"'Ұпай бақылағыш'!C518&COUNTIF('Ұпай бақылағыш'!$C$4:C518,'Ұпай бақылағыш'!C518)","v":"0"}]
[null,516,{"$f":"'Ұпай бақылағыш'!C519&COUNTIF('Ұпай бақылағыш'!$C$4:C519,'Ұпай бақылағыш'!C519)","v":"0"}]
[null,517,{"$f":"'Ұпай бақылағыш'!C520&COUNTIF('Ұпай бақылағыш'!$C$4:C520,'Ұпай бақылағыш'!C520)","v":"0"}]
[null,518,{"$f":"'Ұпай бақылағыш'!C521&COUNTIF('Ұпай бақылағыш'!$C$4:C521,'Ұпай бақылағыш'!C521)","v":"0"}]
[null,519,{"$f":"'Ұпай бақылағыш'!C522&COUNTIF('Ұпай бақылағыш'!$C$4:C522,'Ұпай бақылағыш'!C522)","v":"0"}]
[null,520,{"$f":"'Ұпай бақылағыш'!C523&COUNTIF('Ұпай бақылағыш'!$C$4:C523,'Ұпай бақылағыш'!C523)","v":"0"}]
[null,521,{"$f":"'Ұпай бақылағыш'!C524&COUNTIF('Ұпай бақылағыш'!$C$4:C524,'Ұпай бақылағыш'!C524)","v":"0"}]
[null,522,{"$f":"'Ұпай бақылағыш'!C525&COUNTIF('Ұпай бақылағыш'!$C$4:C525,'Ұпай бақылағыш'!C525)","v":"0"}]
[null,523,{"$f":"'Ұпай бақылағыш'!C526&COUNTIF('Ұпай бақылағыш'!$C$4:C526,'Ұпай бақылағыш'!C526)","v":"0"}]
[null,524,{"$f":"'Ұпай бақылағыш'!C527&COUNTIF('Ұпай бақылағыш'!$C$4:C527,'Ұпай бақылағыш'!C527)","v":"0"}]
[null,525,{"$f":"'Ұпай бақылағыш'!C528&COUNTIF('Ұпай бақылағыш'!$C$4:C528,'Ұпай бақылағыш'!C528)","v":"0"}]
[null,526,{"$f":"'Ұпай бақылағыш'!C529&COUNTIF('Ұпай бақылағыш'!$C$4:C529,'Ұпай бақылағыш'!C529)","v":"0"}]
[null,527,{"$f":"'Ұпай бақылағыш'!C530&COUNTIF('Ұпай бақылағыш'!$C$4:C530,'Ұпай бақылағыш'!C530)","v":"0"}]
[null,528,{"$f":"'Ұпай бақылағыш'!C531&COUNTIF('Ұпай бақылағыш'!$C$4:C531,'Ұпай бақылағыш'!C531)","v":"0"}]
[null,529,{"$f":"'Ұпай бақылағыш'!C532&COUNTIF('Ұпай бақылағыш'!$C$4:C532,'Ұпай бақылағыш'!C532)","v":"0"}]
[null,530,{"$f":"'Ұпай бақылағыш'!C533&COUNTIF('Ұпай бақылағыш'!$C$4:C533,'Ұпай бақылағыш'!C533)","v":"0"}]
[null,531,{"$f":"'Ұпай бақылағыш'!C534&COUNTIF('Ұпай бақылағыш'!$C$4:C534,'Ұпай бақылағыш'!C534)","v":"0"}]
[null,532,{"$f":"'Ұпай бақылағыш'!C535&COUNTIF('Ұпай бақылағыш'!$C$4:C535,'Ұпай бақылағыш'!C535)","v":"0"}]
[null,533,{"$f":"'Ұпай бақылағыш'!C536&COUNTIF('Ұпай бақылағыш'!$C$4:C536,'Ұпай бақылағыш'!C536)","v":"0"}]
[null,534,{"$f":"'Ұпай бақылағыш'!C537&COUNTIF('Ұпай бақылағыш'!$C$4:C537,'Ұпай бақылағыш'!C537)","v":"0"}]
[null,535,{"$f":"'Ұпай бақылағыш'!C538&COUNTIF('Ұпай бақылағыш'!$C$4:C538,'Ұпай бақылағыш'!C538)","v":"0"}]
[null,536,{"$f":"'Ұпай бақылағыш'!C539&COUNTIF('Ұпай бақылағыш'!$C$4:C539,'Ұпай бақылағыш'!C539)","v":"0"}]
[null,537,{"$f":"'Ұпай бақылағыш'!C540&COUNTIF('Ұпай бақылағыш'!$C$4:C540,'Ұпай бақылағыш'!C540)","v":"0"}]
[null,538,{"$f":"'Ұпай бақылағыш'!C541&COUNTIF('Ұпай бақылағыш'!$C$4:C541,'Ұпай бақылағыш'!C541)","v":"0"}]
[null,539,{"$f":"'Ұпай бақылағыш'!C542&COUNTIF('Ұпай бақылағыш'!$C$4:C542,'Ұпай бақылағыш'!C542)","v":"0"}]
[null,540,{"$f":"'Ұпай бақылағыш'!C543&COUNTIF('Ұпай бақылағыш'!$C$4:C543,'Ұпай бақылағыш'!C543)","v":"0"}]
[null,541,{"$f":"'Ұпай бақылағыш'!C544&COUNTIF('Ұпай бақылағыш'!$C$4:C544,'Ұпай бақылағыш'!C544)","v":"0"}]
[null,542,{"$f":"'Ұпай бақылағыш'!C545&COUNTIF('Ұпай бақылағыш'!$C$4:C545,'Ұпай бақылағыш'!C545)","v":"0"}]
[null,543,{"$f":"'Ұпай бақылағыш'!C546&COUNTIF('Ұпай бақылағыш'!$C$4:C546,'Ұпай бақылағыш'!C546)","v":"0"}]
[null,544,{"$f":"'Ұпай бақылағыш'!C547&COUNTIF('Ұпай бақылағыш'!$C$4:C547,'Ұпай бақылағыш'!C547)","v":"0"}]
[null,545,{"$f":"'Ұпай бақылағыш'!C548&COUNTIF('Ұпай бақылағыш'!$C$4:C548,'Ұпай бақылағыш'!C548)","v":"0"}]
[null,546,{"$f":"'Ұпай бақылағыш'!C549&COUNTIF('Ұпай бақылағыш'!$C$4:C549,'Ұпай бақылағыш'!C549)","v":"0"}]
[null,547,{"$f":"'Ұпай бақылағыш'!C550&COUNTIF('Ұпай бақылағыш'!$C$4:C550,'Ұпай бақылағыш'!C550)","v":"0"}]
[null,548,{"$f":"'Ұпай бақылағыш'!C551&COUNTIF('Ұпай бақылағыш'!$C$4:C551,'Ұпай бақылағыш'!C551)","v":"0"}]
[null,549,{"$f":"'Ұпай бақылағыш'!C552&COUNTIF('Ұпай бақылағыш'!$C$4:C552,'Ұпай бақылағыш'!C552)","v":"0"}]
[null,550,{"$f":"'Ұпай бақылағыш'!C553&COUNTIF('Ұпай бақылағыш'!$C$4:C553,'Ұпай бақылағыш'!C553)","v":"0"}]
[null,551,{"$f":"'Ұпай бақылағыш'!C554&COUNTIF('Ұпай бақылағыш'!$C$4:C554,'Ұпай бақылағыш'!C554)","v":"0"}]
[null,552,{"$f":"'Ұпай бақылағыш'!C555&COUNTIF('Ұпай бақылағыш'!$C$4:C555,'Ұпай бақылағыш'!C555)","v":"0"}]
[null,553,{"$f":"'Ұпай бақылағыш'!C556&COUNTIF('Ұпай бақылағыш'!$C$4:C556,'Ұпай бақылағыш'!C556)","v":"0"}]
[null,554,{"$f":"'Ұпай бақылағыш'!C557&COUNTIF('Ұпай бақылағыш'!$C$4:C557,'Ұпай бақылағыш'!C557)","v":"0"}]
[null,555,{"$f":"'Ұпай бақылағыш'!C558&COUNTIF('Ұпай бақылағыш'!$C$4:C558,'Ұпай бақылағыш'!C558)","v":"0"}]
[null,556,{"$f":"'Ұпай бақылағыш'!C559&COUNTIF('Ұпай бақылағыш'!$C$4:C559,'Ұпай бақылағыш'!C559)","v":"0"}]
[null,557,{"$f":"'Ұпай бақылағыш'!C560&COUNTIF('Ұпай бақылағыш'!$C$4:C560,'Ұпай бақылағыш'!C560)","v":"0"}]
[null,558,{"$f":"'Ұпай бақылағыш'!C561&COUNTIF('Ұпай бақылағыш'!$C$4:C561,'Ұпай бақылағыш'!C561)","v":"0"}]
[null,559,{"$f":"'Ұпай бақылағыш'!C562&COUNTIF('Ұпай бақылағыш'!$C$4:C562,'Ұпай бақылағыш'!C562)","v":"0"}]
[null,560,{"$f":"'Ұпай бақылағыш'!C563&COUNTIF('Ұпай бақылағыш'!$C$4:C563,'Ұпай бақылағыш'!C563)","v":"0"}]
[null,561,{"$f":"'Ұпай бақылағыш'!C564&COUNTIF('Ұпай бақылағыш'!$C$4:C564,'Ұпай бақылағыш'!C564)","v":"0"}]
[null,562,{"$f":"'Ұпай бақылағыш'!C565&COUNTIF('Ұпай бақылағыш'!$C$4:C565,'Ұпай бақылағыш'!C565)","v":"0"}]
[null,563,{"$f":"'Ұпай бақылағыш'!C566&COUNTIF('Ұпай бақылағыш'!$C$4:C566,'Ұпай бақылағыш'!C566)","v":"0"}]
[null,564,{"$f":"'Ұпай бақылағыш'!C567&COUNTIF('Ұпай бақылағыш'!$C$4:C567,'Ұпай бақылағыш'!C567)","v":"0"}]
[null,565,{"$f":"'Ұпай бақылағыш'!C568&COUNTIF('Ұпай бақылағыш'!$C$4:C568,'Ұпай бақылағыш'!C568)","v":"0"}]
[null,566,{"$f":"'Ұпай бақылағыш'!C569&COUNTIF('Ұпай бақылағыш'!$C$4:C569,'Ұпай бақылағыш'!C569)","v":"0"}]
[null,567,{"$f":"'Ұпай бақылағыш'!C570&COUNTIF('Ұпай бақылағыш'!$C$4:C570,'Ұпай бақылағыш'!C570)","v":"0"}]
[null,568,{"$f":"'Ұпай бақылағыш'!C571&COUNTIF('Ұпай бақылағыш'!$C$4:C571,'Ұпай бақылағыш'!C571)","v":"0"}]
[null,569,{"$f":"'Ұпай бақылағыш'!C572&COUNTIF('Ұпай бақылағыш'!$C$4:C572,'Ұпай бақылағыш'!C572)","v":"0"}]
[null,570,{"$f":"'Ұпай бақылағыш'!C573&COUNTIF('Ұпай бақылағыш'!$C$4:C573,'Ұпай бақылағыш'!C573)","v":"0"}]
[null,571,{"$f":"'Ұпай бақылағыш'!C574&COUNTIF('Ұпай бақылағыш'!$C$4:C574,'Ұпай бақылағыш'!C574)","v":"0"}]
[null,572,{"$f":"'Ұпай бақылағыш'!C575&COUNTIF('Ұпай бақылағыш'!$C$4:C575,'Ұпай бақылағыш'!C575)","v":"0"}]
[null,573,{"$f":"'Ұпай бақылағыш'!C576&COUNTIF('Ұпай бақылағыш'!$C$4:C576,'Ұпай бақылағыш'!C576)","v":"0"}]
[null,574,{"$f":"'Ұпай бақылағыш'!C577&COUNTIF('Ұпай бақылағыш'!$C$4:C577,'Ұпай бақылағыш'!C577)","v":"0"}]
[null,575,{"$f":"'Ұпай бақылағыш'!C578&COUNTIF('Ұпай бақылағыш'!$C$4:C578,'Ұпай бақылағыш'!C578)","v":"0"}]
[null,576,{"$f":"'Ұпай бақылағыш'!C579&COUNTIF('Ұпай бақылағыш'!$C$4:C579,'Ұпай бақылағыш'!C579)","v":"0"}]
[null,577,{"$f":"'Ұпай бақылағыш'!C580&COUNTIF('Ұпай бақылағыш'!$C$4:C580,'Ұпай бақылағыш'!C580)","v":"0"}]
[null,578,{"$f":"'Ұпай бақылағыш'!C581&COUNTIF('Ұпай бақылағыш'!$C$4:C581,'Ұпай бақылағыш'!C581)","v":"0"}]
[null,579,{"$f":"'Ұпай бақылағыш'!C582&COUNTIF('Ұпай бақылағыш'!$C$4:C582,'Ұпай бақылағыш'!C582)","v":"0"}]
[null,580,{"$f":"'Ұпай бақылағыш'!C583&COUNTIF('Ұпай бақылағыш'!$C$4:C583,'Ұпай бақылағыш'!C583)","v":"0"}]
[null,581,{"$f":"'Ұпай бақылағыш'!C584&COUNTIF('Ұпай бақылағыш'!$C$4:C584,'Ұпай бақылағыш'!C584)","v":"0"}]
[null,582,{"$f":"'Ұпай бақылағыш'!C585&COUNTIF('Ұпай бақылағыш'!$C$4:C585,'Ұпай бақылағыш'!C585)","v":"0"}]
[null,583,{"$f":"'Ұпай бақылағыш'!C586&COUNTIF('Ұпай бақылағыш'!$C$4:C586,'Ұпай бақылағыш'!C586)","v":"0"}]
[null,584,{"$f":"'Ұпай бақылағыш'!C587&COUNTIF('Ұпай бақылағыш'!$C$4:C587,'Ұпай бақылағыш'!C587)","v":"0"}]
[null,585,{"$f":"'Ұпай бақылағыш'!C588&COUNTIF('Ұпай бақылағыш'!$C$4:C588,'Ұпай бақылағыш'!C588)","v":"0"}]
[null,586,{"$f":"'Ұпай бақылағыш'!C589&COUNTIF('Ұпай бақылағыш'!$C$4:C589,'Ұпай бақылағыш'!C589)","v":"0"}]
[null,587,{"$f":"'Ұпай бақылағыш'!C590&COUNTIF('Ұпай бақылағыш'!$C$4:C590,'Ұпай бақылағыш'!C590)","v":"0"}]
[null,588,{"$f":"'Ұпай бақылағыш'!C591&COUNTIF('Ұпай бақылағыш'!$C$4:C591,'Ұпай бақылағыш'!C591)","v":"0"}]
[null,589,{"$f":"'Ұпай бақылағыш'!C592&COUNTIF('Ұпай бақылағыш'!$C$4:C592,'Ұпай бақылағыш'!C592)","v":"0"}]
[null,590,{"$f":"'Ұпай бақылағыш'!C593&COUNTIF('Ұпай бақылағыш'!$C$4:C593,'Ұпай бақылағыш'!C593)","v":"0"}]
[null,591,{"$f":"'Ұпай бақылағыш'!C594&COUNTIF('Ұпай бақылағыш'!$C$4:C594,'Ұпай бақылағыш'!C594)","v":"0"}]
[null,592,{"$f":"'Ұпай бақылағыш'!C595&COUNTIF('Ұпай бақылағыш'!$C$4:C595,'Ұпай бақылағыш'!C595)","v":"0"}]
[null,593,{"$f":"'Ұпай бақылағыш'!C596&COUNTIF('Ұпай бақылағыш'!$C$4:C596,'Ұпай бақылағыш'!C596)","v":"0"}]
[null,594,{"$f":"'Ұпай бақылағыш'!C597&COUNTIF('Ұпай бақылағыш'!$C$4:C597,'Ұпай бақылағыш'!C597)","v":"0"}]
[null,595,{"$f":"'Ұпай бақылағыш'!C598&COUNTIF('Ұпай бақылағыш'!$C$4:C598,'Ұпай бақылағыш'!C598)","v":"0"}]
[null,596,{"$f":"'Ұпай бақылағыш'!C599&COUNTIF('Ұпай бақылағыш'!$C$4:C599,'Ұпай бақылағыш'!C599)","v":"0"}]
[null,597,{"$f":"'Ұпай бақылағыш'!C600&COUNTIF('Ұпай бақылағыш'!$C$4:C600,'Ұпай бақылағыш'!C600)","v":"0"}]
[null,598,{"$f":"'Ұпай бақылағыш'!C601&COUNTIF('Ұпай бақылағыш'!$C$4:C601,'Ұпай бақылағыш'!C601)","v":"0"}]
[null,599,{"$f":"'Ұпай бақылағыш'!C602&COUNTIF('Ұпай бақылағыш'!$C$4:C602,'Ұпай бақылағыш'!C602)","v":"0"}]
[null,600,{"$f":"'Ұпай бақылағыш'!C603&COUNTIF('Ұпай бақылағыш'!$C$4:C603,'Ұпай бақылағыш'!C603)","v":"0"}]
[null,601,{"$f":"'Ұпай бақылағыш'!C604&COUNTIF('Ұпай бақылағыш'!$C$4:C604,'Ұпай бақылағыш'!C604)","v":"0"}]
[null,602,{"$f":"'Ұпай бақылағыш'!C605&COUNTIF('Ұпай бақылағыш'!$C$4:C605,'Ұпай бақылағыш'!C605)","v":"0"}]
[null,603,{"$f":"'Ұпай бақылағыш'!C606&COUNTIF('Ұпай бақылағыш'!$C$4:C606,'Ұпай бақылағыш'!C606)","v":"0"}]
[null,604,{"$f":"'Ұпай бақылағыш'!C607&COUNTIF('Ұпай бақылағыш'!$C$4:C607,'Ұпай бақылағыш'!C607)","v":"0"}]
[null,605,{"$f":"'Ұпай бақылағыш'!C608&COUNTIF('Ұпай бақылағыш'!$C$4:C608,'Ұпай бақылағыш'!C608)","v":"0"}]
[null,606,{"$f":"'Ұпай бақылағыш'!C609&COUNTIF('Ұпай бақылағыш'!$C$4:C609,'Ұпай бақылағыш'!C609)","v":"0"}]
[null,607,{"$f":"'Ұпай бақылағыш'!C610&COUNTIF('Ұпай бақылағыш'!$C$4:C610,'Ұпай бақылағыш'!C610)","v":"0"}]
[null,608,{"$f":"'Ұпай бақылағыш'!C611&COUNTIF('Ұпай бақылағыш'!$C$4:C611,'Ұпай бақылағыш'!C611)","v":"0"}]
[null,609,{"$f":"'Ұпай бақылағыш'!C612&COUNTIF('Ұпай бақылағыш'!$C$4:C612,'Ұпай бақылағыш'!C612)","v":"0"}]
[null,610,{"$f":"'Ұпай бақылағыш'!C613&COUNTIF('Ұпай бақылағыш'!$C$4:C613,'Ұпай бақылағыш'!C613)","v":"0"}]
[null,611,{"$f":"'Ұпай бақылағыш'!C614&COUNTIF('Ұпай бақылағыш'!$C$4:C614,'Ұпай бақылағыш'!C614)","v":"0"}]
[null,612,{"$f":"'Ұпай бақылағыш'!C615&COUNTIF('Ұпай бақылағыш'!$C$4:C615,'Ұпай бақылағыш'!C615)","v":"0"}]
[null,613,{"$f":"'Ұпай бақылағыш'!C616&COUNTIF('Ұпай бақылағыш'!$C$4:C616,'Ұпай бақылағыш'!C616)","v":"0"}]
[null,614,{"$f":"'Ұпай бақылағыш'!C617&COUNTIF('Ұпай бақылағыш'!$C$4:C617,'Ұпай бақылағыш'!C617)","v":"0"}]
[null,615,{"$f":"'Ұпай бақылағыш'!C618&COUNTIF('Ұпай бақылағыш'!$C$4:C618,'Ұпай бақылағыш'!C618)","v":"0"}]
[null,616,{"$f":"'Ұпай бақылағыш'!C619&COUNTIF('Ұпай бақылағыш'!$C$4:C619,'Ұпай бақылағыш'!C619)","v":"0"}]
[null,617,{"$f":"'Ұпай бақылағыш'!C620&COUNTIF('Ұпай бақылағыш'!$C$4:C620,'Ұпай бақылағыш'!C620)","v":"0"}]
[null,618,{"$f":"'Ұпай бақылағыш'!C621&COUNTIF('Ұпай бақылағыш'!$C$4:C621,'Ұпай бақылағыш'!C621)","v":"0"}]
[null,619,{"$f":"'Ұпай бақылағыш'!C622&COUNTIF('Ұпай бақылағыш'!$C$4:C622,'Ұпай бақылағыш'!C622)","v":"0"}]
[null,620,{"$f":"'Ұпай бақылағыш'!C623&COUNTIF('Ұпай бақылағыш'!$C$4:C623,'Ұпай бақылағыш'!C623)","v":"0"}]
[null,621,{"$f":"'Ұпай бақылағыш'!C624&COUNTIF('Ұпай бақылағыш'!$C$4:C624,'Ұпай бақылағыш'!C624)","v":"0"}]
[null,622,{"$f":"'Ұпай бақылағыш'!C625&COUNTIF('Ұпай бақылағыш'!$C$4:C625,'Ұпай бақылағыш'!C625)","v":"0"}]
[null,623,{"$f":"'Ұпай бақылағыш'!C626&COUNTIF('Ұпай бақылағыш'!$C$4:C626,'Ұпай бақылағыш'!C626)","v":"0"}]
[null,624,{"$f":"'Ұпай бақылағыш'!C627&COUNTIF('Ұпай бақылағыш'!$C$4:C627,'Ұпай бақылағыш'!C627)","v":"0"}]
[null,625,{"$f":"'Ұпай бақылағыш'!C628&COUNTIF('Ұпай бақылағыш'!$C$4:C628,'Ұпай бақылағыш'!C628)","v":"0"}]